{"text_format":"1","workbook":"xlsx","n_sheets":5,"sheets":["SANADAT","الهديب","الهاشمي","محمد الخالدي","ابو سعود"],"not_rendered":{"charts":0,"images":1,"macros":1,"external_links":0,"defined_names":45,"comments":0,"pivot_tables":0},"unopened":[],"bounds":{"document_bytes":16777216,"sheet_cells":100000,"rows_first":2000,"rows_last":500,"rows_between":2000,"halvings":0,"cell_chars":16384,"cell_head_chars":4096},"cells_cut":0,"cells_raw":0,"read":"whole","date_system":"1900"}

{"sheet":"SANADAT","index":0,"n_rows":1392,"n_cols":17,"rows_kept":1392,"cut":false,"hidden":false,"merged":[]}
["الرقم","التاريخ","رقم السند","المستأجر","رقم الجوال","رقم الشقه","البنايه","الفترة من","الفترة الي","المبلغ","التأمين","اتعاب المكتب","مصاريف اداريه","صيانه","مبلغ الضريبة","اسم العميل"]
[{"$f":"IF(B2=\"\",\"\",ROW()-1)","v":1},"2018-02-28",1,"وائل الهديب",535266463,103,"الجوهرة","2018-07-09","2019-01-09",11000,0,0,1700,0,0,{"$f":"IF($G2=\"\",\"\",VLOOKUP($G2,{\"الخالدي\",\"محمد الخالدي\";\"البايونيه\",\"الهاشمي\";\"الراكه\",\"الهاشمي\";\"الجوهرة\",\"الهديب\";\"ناصر\",\"ابو سعود\"},2,0))","v":"الهديب"},"OK"]
[{"$f":"IF(B3=\"\",\"\",ROW()-1)","v":2},"2018-02-28",2,"سيد الهاشمي",502233784,2,"البايونيه","2018-10-19","2020-04-19",15000,0,450,0,0,0,{"$f":"IF($G3=\"\",\"\",VLOOKUP($G3,{\"الخالدي\",\"محمد الخالدي\";\"البايونيه\",\"الهاشمي\";\"الراكه\",\"الهاشمي\";\"الجوهرة\",\"الهديب\";\"ناصر\",\"ابو سعود\"},2,0))","v":"الهاشمي"},"OK"]
[3,"2018-02-28",3,"محمد الهاشمي",509859849,2,"الراكه","2018-05-24","2019-02-24",16000,500,0,0,0,0,{"$f":"IF($G4=\"\",\"\",VLOOKUP($G4,{\"الخالدي\",\"محمد الخالدي\";\"البايونيه\",\"الهاشمي\";\"الراكه\",\"الهاشمي\";\"الجوهرة\",\"الهديب\";\"ناصر\",\"ابو سعود\"},2,0))","v":"الهاشمي"},"OK"]
[4,"2018-02-28",5,"مبارك الخالدي",538616819,2,"الخالدي","2018-05-16","2019-10-16",12500,0,500,0,0,0,{"$f":"IF($G5=\"\",\"\",VLOOKUP($G5,{\"الخالدي\",\"محمد الخالدي\";\"البايونيه\",\"الهاشمي\";\"الراكه\",\"الهاشمي\";\"الجوهرة\",\"الهديب\";\"ناصر\",\"ابو سعود\"},2,0))","v":"محمد الخالدي"},"OK"]
[5,"2018-02-28",6,"حمدي سعود",538616819,2,"ناصر","2018-05-16","2019-10-16",1250,0,0,800,0,0,{"$f":"IF($G6=\"\",\"\",VLOOKUP($G6,{\"الخالدي\",\"محمد الخالدي\";\"البايونيه\",\"الهاشمي\";\"الراكه\",\"الهاشمي\";\"الجوهرة\",\"الهديب\";\"ناصر\",\"ابو سعود\"},2,0))","v":"ابو سعود"},"OK"]
[6,"2018-02-28",7,"ناصر سعود",538616819,2,"ناصر","2018-05-16","2019-10-16",22000,0,0,0,500,0,{"$f":"IF($G7=\"\",\"\",VLOOKUP($G7,{\"الخالدي\",\"محمد الخالدي\";\"البايونيه\",\"الهاشمي\";\"الراكه\",\"الهاشمي\";\"الجوهرة\",\"الهديب\";\"ناصر\",\"ابو سعود\"},2,0))","v":"ابو سعود"},"OK"]
[7,"2018-02-28",7,"ناصر الخالدي",538616819,2,"الخالدي","2018-05-16","2019-10-16",22000,0,0,0,500,0,{"$f":"IF($G8=\"\",\"\",VLOOKUP($G8,{\"الخالدي\",\"محمد الخالدي\";\"البايونيه\",\"الهاشمي\";\"الراكه\",\"الهاشمي\";\"الجوهرة\",\"الهديب\";\"ناصر\",\"ابو سعود\"},2,0))","v":"محمد الخالدي"},"OK"]
[8,"2018-02-28",7,"ناصر الخالدي",538616819,2,"الجوهرة","2018-05-16","Salim",22000,0,0,0,500,0,{"$f":"IF($G9=\"\",\"\",VLOOKUP($G9,{\"الخالدي\",\"محمد الخالدي\";\"البايونيه\",\"الهاشمي\";\"الراكه\",\"الهاشمي\";\"الجوهرة\",\"الهديب\";\"ناصر\",\"ابو سعود\"},2,0))","v":"الهديب"},"OK"]
[9,"2018-02-28",3,"محمد الهاشمي",509859849,2,"الراكه","2018-05-24","2019-02-24",16000,500,0,0,0,0,{"$f":"IF($G10=\"\",\"\",VLOOKUP($G10,{\"الخالدي\",\"محمد الخالدي\";\"البايونيه\",\"الهاشمي\";\"الراكه\",\"الهاشمي\";\"الجوهرة\",\"الهديب\";\"ناصر\",\"ابو سعود\"},2,0))","v":"الهاشمي"},"OK"]
[10,"2018-02-28",5,"مبارك الخالدي",538616819,2,"الخالدي","2018-05-16","2019-10-16",12500,0,"off",0,0,0,{"$f":"IF($G11=\"\",\"\",VLOOKUP($G11,{\"الخالدي\",\"محمد الخالدي\";\"البايونيه\",\"الهاشمي\";\"الراكه\",\"الهاشمي\";\"الجوهرة\",\"الهديب\";\"ناصر\",\"ابو سعود\"},2,0))","v":"محمد الخالدي"},"OK"]
[11,"2018-02-28",6,"حمدي سعود",538616819,2,"ناصر","2018-05-16","2019-10-16",1250,0,"off",500,0,0,{"$f":"IF($G12=\"\",\"\",VLOOKUP($G12,{\"الخالدي\",\"محمد الخالدي\";\"البايونيه\",\"الهاشمي\";\"الراكه\",\"الهاشمي\";\"الجوهرة\",\"الهديب\";\"ناصر\",\"ابو سعود\"},2,0))","v":"ابو سعود"},"OK"]
[12,"2018-02-28",7,"ناصر سعود",538616819,2,"ناصر","2018-05-16","2019-10-16",22000,0,"off",0,500,0,{"$f":"IF($G13=\"\",\"\",VLOOKUP($G13,{\"الخالدي\",\"محمد الخالدي\";\"البايونيه\",\"الهاشمي\";\"الراكه\",\"الهاشمي\";\"الجوهرة\",\"الهديب\";\"ناصر\",\"ابو سعود\"},2,0))","v":"ابو سعود"},"OK"]
[13,"2018-02-28",7,"ناصر الخالدي",538616819,2,"الخالدي","2018-05-16","2019-10-16",22000,"salim",0,0,500,0,{"$f":"IF($G14=\"\",\"\",VLOOKUP($G14,{\"الخالدي\",\"محمد الخالدي\";\"البايونيه\",\"الهاشمي\";\"الراكه\",\"الهاشمي\";\"الجوهرة\",\"الهديب\";\"ناصر\",\"ابو سعود\"},2,0))","v":"محمد الخالدي"},"OK"]
[14,"2018-02-28",7,"ناصر الخالدي",538616819,2,"الجوهرة","2018-05-16","Salim",22000,0,0,0,500,0,{"$f":"IF($G15=\"\",\"\",VLOOKUP($G15,{\"الخالدي\",\"محمد الخالدي\";\"البايونيه\",\"الهاشمي\";\"الراكه\",\"الهاشمي\";\"الجوهرة\",\"الهديب\";\"ناصر\",\"ابو سعود\"},2,0))","v":"الهديب"},"OK"]
[15,"2018-02-28",3,"محمد الهاشمي",509859849,2,"الراكه","2018-05-24","2019-02-24",16000,500,"off",0,0,0,{"$f":"IF($G16=\"\",\"\",VLOOKUP($G16,{\"الخالدي\",\"محمد الخالدي\";\"البايونيه\",\"الهاشمي\";\"الراكه\",\"الهاشمي\";\"الجوهرة\",\"الهديب\";\"ناصر\",\"ابو سعود\"},2,0))","v":"الهاشمي"},"OK"]
[16,"2018-02-28",1,"وائل الهديب",535266463,103,"الجوهرة","2018-07-09","2019-01-09",11000,0,0,1500,0,0,{"$f":"IF($G17=\"\",\"\",VLOOKUP($G17,{\"الخالدي\",\"محمد الخالدي\";\"البايونيه\",\"الهاشمي\";\"الراكه\",\"الهاشمي\";\"الجوهرة\",\"الهديب\";\"ناصر\",\"ابو سعود\"},2,0))","v":"الهديب"},"OK"]
["",null,null,null,null,null,null,null,null,null,null,null,null,null,null,{"$f":"IF($G18=\"\",\"\",VLOOKUP($G18,{\"الخالدي\",\"محمد الخالدي\";\"البايونيه\",\"الهاشمي\";\"الراكه\",\"الهاشمي\";\"الجوهرة\",\"الهديب\";\"ناصر\",\"ابو سعود\"},2,0))","v":""}]
["",null,null,null,null,null,null,null,null,null,null,null,null,null,null,{"$f":"IF($G19=\"\",\"\",VLOOKUP($G19,{\"الخالدي\",\"محمد الخالدي\";\"البايونيه\",\"الهاشمي\";\"الراكه\",\"الهاشمي\";\"الجوهرة\",\"الهديب\";\"ناصر\",\"ابو سعود\"},2,0))","v":""}]
["",null,null,null,null,null,null,null,null,null,null,null,null,null,null,{"$f":"IF($G20=\"\",\"\",VLOOKUP($G20,{\"الخالدي\",\"محمد الخالدي\";\"البايونيه\",\"الهاشمي\";\"الراكه\",\"الهاشمي\";\"الجوهرة\",\"الهديب\";\"ناصر\",\"ابو سعود\"},2,0))","v":""}]
["",null,null,null,null,null,null,null,null,null,null,null,null,null,null,{"$f":"IF($G21=\"\",\"\",VLOOKUP($G21,{\"الخالدي\",\"محمد الخالدي\";\"البايونيه\",\"الهاشمي\";\"الراكه\",\"الهاشمي\";\"الجوهرة\",\"الهديب\";\"ناصر\",\"ابو سعود\"},2,0))","v":""}]
["",null,null,null,null,null,null,null,null,null,null,null,null,null,null,{"$f":"IF($G22=\"\",\"\",VLOOKUP($G22,{\"الخالدي\",\"محمد الخالدي\";\"البايونيه\",\"الهاشمي\";\"الراكه\",\"الهاشمي\";\"الجوهرة\",\"الهديب\";\"ناصر\",\"ابو سعود\"},2,0))","v":""}]
["",null,null,null,null,null,null,null,null,null,null,null,null,null,null,{"$f":"IF($G23=\"\",\"\",VLOOKUP($G23,{\"الخالدي\",\"محمد الخالدي\";\"البايونيه\",\"الهاشمي\";\"الراكه\",\"الهاشمي\";\"الجوهرة\",\"الهديب\";\"ناصر\",\"ابو سعود\"},2,0))","v":""}]
["",null,null,null,null,null,null,null,null,null,null,null,null,null,null,{"$f":"IF($G24=\"\",\"\",VLOOKUP($G24,{\"الخالدي\",\"محمد الخالدي\";\"البايونيه\",\"الهاشمي\";\"الراكه\",\"الهاشمي\";\"الجوهرة\",\"الهديب\";\"ناصر\",\"ابو سعود\"},2,0))","v":""}]
[null,null,null,null,null,null,null,null,null,null,null,null,null,null,null,{"$f":"IF($G25=\"\",\"\",VLOOKUP($G25,{\"الخالدي\",\"محمد الخالدي\";\"البايونيه\",\"الهاشمي\";\"الراكه\",\"الهاشمي\";\"الجوهرة\",\"الهديب\";\"ناصر\",\"ابو سعود\"},2,0))","v":""}]
[null,null,null,null,null,null,null,null,null,null,null,null,null,null,null,{"$f":"IF($G26=\"\",\"\",VLOOKUP($G26,{\"الخالدي\",\"محمد الخالدي\";\"البايونيه\",\"الهاشمي\";\"الراكه\",\"الهاشمي\";\"الجوهرة\",\"الهديب\";\"ناصر\",\"ابو سعود\"},2,0))","v":""}]
[null,null,null,null,null,null,null,null,null,null,null,null,null,null,null,{"$f":"IF($G27=\"\",\"\",VLOOKUP($G27,{\"الخالدي\",\"محمد الخالدي\";\"البايونيه\",\"الهاشمي\";\"الراكه\",\"الهاشمي\";\"الجوهرة\",\"الهديب\";\"ناصر\",\"ابو سعود\"},2,0))","v":""}]
[null,null,null,null,null,null,null,null,null,null,null,null,null,null,null,{"$f":"IF($G28=\"\",\"\",VLOOKUP($G28,{\"الخالدي\",\"محمد الخالدي\";\"البايونيه\",\"الهاشمي\";\"الراكه\",\"الهاشمي\";\"الجوهرة\",\"الهديب\";\"ناصر\",\"ابو سعود\"},2,0))","v":""}]
[null,null,null,null,null,null,null,null,null,null,null,null,null,null,null,{"$f":"IF($G29=\"\",\"\",VLOOKUP($G29,{\"الخالدي\",\"محمد الخالدي\";\"البايونيه\",\"الهاشمي\";\"الراكه\",\"الهاشمي\";\"الجوهرة\",\"الهديب\";\"ناصر\",\"ابو سعود\"},2,0))","v":""}]
[null,null,null,null,null,null,null,null,null,null,null,null,null,null,null,{"$f":"IF($G30=\"\",\"\",VLOOKUP($G30,{\"الخالدي\",\"محمد الخالدي\";\"البايونيه\",\"الهاشمي\";\"الراكه\",\"الهاشمي\";\"الجوهرة\",\"الهديب\";\"ناصر\",\"ابو سعود\"},2,0))","v":""}]
[null,null,null,null,null,null,null,null,null,null,null,null,null,null,null,{"$f":"IF($G31=\"\",\"\",VLOOKUP($G31,{\"الخالدي\",\"محمد الخالدي\";\"البايونيه\",\"الهاشمي\";\"الراكه\",\"الهاشمي\";\"الجوهرة\",\"الهديب\";\"ناصر\",\"ابو سعود\"},2,0))","v":""}]
[null,null,null,null,null,null,null,null,null,null,null,null,null,null,null,{"$f":"IF($G32=\"\",\"\",VLOOKUP($G32,{\"الخالدي\",\"محمد الخالدي\";\"البايونيه\",\"الهاشمي\";\"الراكه\",\"الهاشمي\";\"الجوهرة\",\"الهديب\";\"ناصر\",\"ابو سعود\"},2,0))","v":""}]
[null,null,null,null,null,null,null,null,null,null,null,null,null,null,null,{"$f":"IF($G33=\"\",\"\",VLOOKUP($G33,{\"الخالدي\",\"محمد الخالدي\";\"البايونيه\",\"الهاشمي\";\"الراكه\",\"الهاشمي\";\"الجوهرة\",\"الهديب\";\"ناصر\",\"ابو سعود\"},2,0))","v":""}]
[null,null,null,null,null,null,null,null,null,null,null,null,null,null,null,{"$f":"IF($G34=\"\",\"\",VLOOKUP($G34,{\"الخالدي\",\"محمد الخالدي\";\"البايونيه\",\"الهاشمي\";\"الراكه\",\"الهاشمي\";\"الجوهرة\",\"الهديب\";\"ناصر\",\"ابو سعود\"},2,0))","v":""}]
[null,null,null,null,null,null,null,null,null,null,null,null,null,null,null,{"$f":"IF($G35=\"\",\"\",VLOOKUP($G35,{\"الخالدي\",\"محمد الخالدي\";\"البايونيه\",\"الهاشمي\";\"الراكه\",\"الهاشمي\";\"الجوهرة\",\"الهديب\";\"ناصر\",\"ابو سعود\"},2,0))","v":""}]
[null,null,null,null,null,null,null,null,null,null,null,null,null,null,null,{"$f":"IF($G36=\"\",\"\",VLOOKUP($G36,{\"الخالدي\",\"محمد الخالدي\";\"البايونيه\",\"الهاشمي\";\"الراكه\",\"الهاشمي\";\"الجوهرة\",\"الهديب\";\"ناصر\",\"ابو سعود\"},2,0))","v":""}]
[null,null,null,null,null,null,null,null,null,null,null,null,null,null,null,{"$f":"IF($G37=\"\",\"\",VLOOKUP($G37,{\"الخالدي\",\"محمد الخالدي\";\"البايونيه\",\"الهاشمي\";\"الراكه\",\"الهاشمي\";\"الجوهرة\",\"الهديب\";\"ناصر\",\"ابو سعود\"},2,0))","v":""}]
[null,null,null,null,null,null,null,null,null,null,null,null,null,null,null,{"$f":"IF($G38=\"\",\"\",VLOOKUP($G38,{\"الخالدي\",\"محمد الخالدي\";\"البايونيه\",\"الهاشمي\";\"الراكه\",\"الهاشمي\";\"الجوهرة\",\"الهديب\";\"ناصر\",\"ابو سعود\"},2,0))","v":""}]
[null,null,null,null,null,null,null,null,null,null,null,null,null,null,null,{"$f":"IF($G39=\"\",\"\",VLOOKUP($G39,{\"الخالدي\",\"محمد الخالدي\";\"البايونيه\",\"الهاشمي\";\"الراكه\",\"الهاشمي\";\"الجوهرة\",\"الهديب\";\"ناصر\",\"ابو سعود\"},2,0))","v":""}]
[null,null,null,null,null,null,null,null,null,null,null,null,null,null,null,{"$f":"IF($G40=\"\",\"\",VLOOKUP($G40,{\"الخالدي\",\"محمد الخالدي\";\"البايونيه\",\"الهاشمي\";\"الراكه\",\"الهاشمي\";\"الجوهرة\",\"الهديب\";\"ناصر\",\"ابو سعود\"},2,0))","v":""}]
[null,null,null,null,null,null,null,null,null,null,null,null,null,null,null,{"$f":"IF($G41=\"\",\"\",VLOOKUP($G41,{\"الخالدي\",\"محمد الخالدي\";\"البايونيه\",\"الهاشمي\";\"الراكه\",\"الهاشمي\";\"الجوهرة\",\"الهديب\";\"ناصر\",\"ابو سعود\"},2,0))","v":""}]
[null,null,null,null,null,null,null,null,null,null,null,null,null,null,null,{"$f":"IF($G42=\"\",\"\",VLOOKUP($G42,{\"الخالدي\",\"محمد الخالدي\";\"البايونيه\",\"الهاشمي\";\"الراكه\",\"الهاشمي\";\"الجوهرة\",\"الهديب\";\"ناصر\",\"ابو سعود\"},2,0))","v":""}]
[null,null,null,null,null,null,null,null,null,null,null,null,null,null,null,{"$f":"IF($G43=\"\",\"\",VLOOKUP($G43,{\"الخالدي\",\"محمد الخالدي\";\"البايونيه\",\"الهاشمي\";\"الراكه\",\"الهاشمي\";\"الجوهرة\",\"الهديب\";\"ناصر\",\"ابو سعود\"},2,0))","v":""}]
[null,null,null,null,null,null,null,null,null,null,null,null,null,null,null,{"$f":"IF($G44=\"\",\"\",VLOOKUP($G44,{\"الخالدي\",\"محمد الخالدي\";\"البايونيه\",\"الهاشمي\";\"الراكه\",\"الهاشمي\";\"الجوهرة\",\"الهديب\";\"ناصر\",\"ابو سعود\"},2,0))","v":""}]
[null,null,null,null,null,null,null,null,null,null,null,null,null,null,null,{"$f":"IF($G45=\"\",\"\",VLOOKUP($G45,{\"الخالدي\",\"محمد الخالدي\";\"البايونيه\",\"الهاشمي\";\"الراكه\",\"الهاشمي\";\"الجوهرة\",\"الهديب\";\"ناصر\",\"ابو سعود\"},2,0))","v":""}]
[null,null,null,null,null,null,null,null,null,null,null,null,null,null,null,{"$f":"IF($G46=\"\",\"\",VLOOKUP($G46,{\"الخالدي\",\"محمد الخالدي\";\"البايونيه\",\"الهاشمي\";\"الراكه\",\"الهاشمي\";\"الجوهرة\",\"الهديب\";\"ناصر\",\"ابو سعود\"},2,0))","v":""}]
[null,null,null,null,null,null,null,null,null,null,null,null,null,null,null,{"$f":"IF($G47=\"\",\"\",VLOOKUP($G47,{\"الخالدي\",\"محمد الخالدي\";\"البايونيه\",\"الهاشمي\";\"الراكه\",\"الهاشمي\";\"الجوهرة\",\"الهديب\";\"ناصر\",\"ابو سعود\"},2,0))","v":""}]
[null,null,null,null,null,null,null,null,null,null,null,null,null,null,null,{"$f":"IF($G48=\"\",\"\",VLOOKUP($G48,{\"الخالدي\",\"محمد الخالدي\";\"البايونيه\",\"الهاشمي\";\"الراكه\",\"الهاشمي\";\"الجوهرة\",\"الهديب\";\"ناصر\",\"ابو سعود\"},2,0))","v":""}]
[null,null,null,null,null,null,null,null,null,null,null,null,null,null,null,{"$f":"IF($G49=\"\",\"\",VLOOKUP($G49,{\"الخالدي\",\"محمد الخالدي\";\"البايونيه\",\"الهاشمي\";\"الراكه\",\"الهاشمي\";\"الجوهرة\",\"الهديب\";\"ناصر\",\"ابو سعود\"},2,0))","v":""}]
[null,null,null,null,null,null,null,null,null,null,null,null,null,null,null,{"$f":"IF($G50=\"\",\"\",VLOOKUP($G50,{\"الخالدي\",\"محمد الخالدي\";\"البايونيه\",\"الهاشمي\";\"الراكه\",\"الهاشمي\";\"الجوهرة\",\"الهديب\";\"ناصر\",\"ابو سعود\"},2,0))","v":""}]
[null,null,null,null,null,null,null,null,null,null,null,null,null,null,null,{"$f":"IF($G51=\"\",\"\",VLOOKUP($G51,{\"الخالدي\",\"محمد الخالدي\";\"البايونيه\",\"الهاشمي\";\"الراكه\",\"الهاشمي\";\"الجوهرة\",\"الهديب\";\"ناصر\",\"ابو سعود\"},2,0))","v":""}]
[null,null,null,null,null,null,null,null,null,null,null,null,null,null,null,{"$f":"IF($G52=\"\",\"\",VLOOKUP($G52,{\"الخالدي\",\"محمد الخالدي\";\"البايونيه\",\"الهاشمي\";\"الراكه\",\"الهاشمي\";\"الجوهرة\",\"الهديب\";\"ناصر\",\"ابو سعود\"},2,0))","v":""}]
[null,null,null,null,null,null,null,null,null,null,null,null,null,null,null,{"$f":"IF($G53=\"\",\"\",VLOOKUP($G53,{\"الخالدي\",\"محمد الخالدي\";\"البايونيه\",\"الهاشمي\";\"الراكه\",\"الهاشمي\";\"الجوهرة\",\"الهديب\";\"ناصر\",\"ابو سعود\"},2,0))","v":""}]
[null,null,null,null,null,null,null,null,null,null,null,null,null,null,null,{"$f":"IF($G54=\"\",\"\",VLOOKUP($G54,{\"الخالدي\",\"محمد الخالدي\";\"البايونيه\",\"الهاشمي\";\"الراكه\",\"الهاشمي\";\"الجوهرة\",\"الهديب\";\"ناصر\",\"ابو سعود\"},2,0))","v":""}]
[null,null,null,null,null,null,null,null,null,null,null,null,null,null,null,{"$f":"IF($G55=\"\",\"\",VLOOKUP($G55,{\"الخالدي\",\"محمد الخالدي\";\"البايونيه\",\"الهاشمي\";\"الراكه\",\"الهاشمي\";\"الجوهرة\",\"الهديب\";\"ناصر\",\"ابو سعود\"},2,0))","v":""}]
[null,null,null,null,null,null,null,null,null,null,null,null,null,null,null,{"$f":"IF($G56=\"\",\"\",VLOOKUP($G56,{\"الخالدي\",\"محمد الخالدي\";\"البايونيه\",\"الهاشمي\";\"الراكه\",\"الهاشمي\";\"الجوهرة\",\"الهديب\";\"ناصر\",\"ابو سعود\"},2,0))","v":""}]
[null,null,null,null,null,null,null,null,null,null,null,null,null,null,null,{"$f":"IF($G57=\"\",\"\",VLOOKUP($G57,{\"الخالدي\",\"محمد الخالدي\";\"البايونيه\",\"الهاشمي\";\"الراكه\",\"الهاشمي\";\"الجوهرة\",\"الهديب\";\"ناصر\",\"ابو سعود\"},2,0))","v":""}]
[null,null,null,null,null,null,null,null,null,null,null,null,null,null,null,{"$f":"IF($G58=\"\",\"\",VLOOKUP($G58,{\"الخالدي\",\"محمد الخالدي\";\"البايونيه\",\"الهاشمي\";\"الراكه\",\"الهاشمي\";\"الجوهرة\",\"الهديب\";\"ناصر\",\"ابو سعود\"},2,0))","v":""}]
[null,null,null,null,null,null,null,null,null,null,null,null,null,null,null,{"$f":"IF($G59=\"\",\"\",VLOOKUP($G59,{\"الخالدي\",\"محمد الخالدي\";\"البايونيه\",\"الهاشمي\";\"الراكه\",\"الهاشمي\";\"الجوهرة\",\"الهديب\";\"ناصر\",\"ابو سعود\"},2,0))","v":""}]
[null,null,null,null,null,null,null,null,null,null,null,null,null,null,null,{"$f":"IF($G60=\"\",\"\",VLOOKUP($G60,{\"الخالدي\",\"محمد الخالدي\";\"البايونيه\",\"الهاشمي\";\"الراكه\",\"الهاشمي\";\"الجوهرة\",\"الهديب\";\"ناصر\",\"ابو سعود\"},2,0))","v":""}]
[null,null,null,null,null,null,null,null,null,null,null,null,null,null,null,{"$f":"IF($G61=\"\",\"\",VLOOKUP($G61,{\"الخالدي\",\"محمد الخالدي\";\"البايونيه\",\"الهاشمي\";\"الراكه\",\"الهاشمي\";\"الجوهرة\",\"الهديب\";\"ناصر\",\"ابو سعود\"},2,0))","v":""}]
[null,null,null,null,null,null,null,null,null,null,null,null,null,null,null,{"$f":"IF($G62=\"\",\"\",VLOOKUP($G62,{\"الخالدي\",\"محمد الخالدي\";\"البايونيه\",\"الهاشمي\";\"الراكه\",\"الهاشمي\";\"الجوهرة\",\"الهديب\";\"ناصر\",\"ابو سعود\"},2,0))","v":""}]
[null,null,null,null,null,null,null,null,null,null,null,null,null,null,null,{"$f":"IF($G63=\"\",\"\",VLOOKUP($G63,{\"الخالدي\",\"محمد الخالدي\";\"البايونيه\",\"الهاشمي\";\"الراكه\",\"الهاشمي\";\"الجوهرة\",\"الهديب\";\"ناصر\",\"ابو سعود\"},2,0))","v":""}]
[null,null,null,null,null,null,null,null,null,null,null,null,null,null,null,{"$f":"IF($G64=\"\",\"\",VLOOKUP($G64,{\"الخالدي\",\"محمد الخالدي\";\"البايونيه\",\"الهاشمي\";\"الراكه\",\"الهاشمي\";\"الجوهرة\",\"الهديب\";\"ناصر\",\"ابو سعود\"},2,0))","v":""}]
[null,null,null,null,null,null,null,null,null,null,null,null,null,null,null,{"$f":"IF($G65=\"\",\"\",VLOOKUP($G65,{\"الخالدي\",\"محمد الخالدي\";\"البايونيه\",\"الهاشمي\";\"الراكه\",\"الهاشمي\";\"الجوهرة\",\"الهديب\";\"ناصر\",\"ابو سعود\"},2,0))","v":""}]
[null,null,null,null,null,null,null,null,null,null,null,null,null,null,null,{"$f":"IF($G66=\"\",\"\",VLOOKUP($G66,{\"الخالدي\",\"محمد الخالدي\";\"البايونيه\",\"الهاشمي\";\"الراكه\",\"الهاشمي\";\"الجوهرة\",\"الهديب\";\"ناصر\",\"ابو سعود\"},2,0))","v":""}]
[null,null,null,null,null,null,null,null,null,null,null,null,null,null,null,{"$f":"IF($G67=\"\",\"\",VLOOKUP($G67,{\"الخالدي\",\"محمد الخالدي\";\"البايونيه\",\"الهاشمي\";\"الراكه\",\"الهاشمي\";\"الجوهرة\",\"الهديب\";\"ناصر\",\"ابو سعود\"},2,0))","v":""}]
[null,null,null,null,null,null,null,null,null,null,null,null,null,null,null,{"$f":"IF($G68=\"\",\"\",VLOOKUP($G68,{\"الخالدي\",\"محمد الخالدي\";\"البايونيه\",\"الهاشمي\";\"الراكه\",\"الهاشمي\";\"الجوهرة\",\"الهديب\";\"ناصر\",\"ابو سعود\"},2,0))","v":""}]
[null,null,null,null,null,null,null,null,null,null,null,null,null,null,null,{"$f":"IF($G69=\"\",\"\",VLOOKUP($G69,{\"الخالدي\",\"محمد الخالدي\";\"البايونيه\",\"الهاشمي\";\"الراكه\",\"الهاشمي\";\"الجوهرة\",\"الهديب\";\"ناصر\",\"ابو سعود\"},2,0))","v":""}]
[null,null,null,null,null,null,null,null,null,null,null,null,null,null,null,{"$f":"IF($G70=\"\",\"\",VLOOKUP($G70,{\"الخالدي\",\"محمد الخالدي\";\"البايونيه\",\"الهاشمي\";\"الراكه\",\"الهاشمي\";\"الجوهرة\",\"الهديب\";\"ناصر\",\"ابو سعود\"},2,0))","v":""}]
[null,null,null,null,null,null,null,null,null,null,null,null,null,null,null,{"$f":"IF($G71=\"\",\"\",VLOOKUP($G71,{\"الخالدي\",\"محمد الخالدي\";\"البايونيه\",\"الهاشمي\";\"الراكه\",\"الهاشمي\";\"الجوهرة\",\"الهديب\";\"ناصر\",\"ابو سعود\"},2,0))","v":""}]
[null,null,null,null,null,null,null,null,null,null,null,null,null,null,null,{"$f":"IF($G72=\"\",\"\",VLOOKUP($G72,{\"الخالدي\",\"محمد الخالدي\";\"البايونيه\",\"الهاشمي\";\"الراكه\",\"الهاشمي\";\"الجوهرة\",\"الهديب\";\"ناصر\",\"ابو سعود\"},2,0))","v":""}]
[null,null,null,null,null,null,null,null,null,null,null,null,null,null,null,{"$f":"IF($G73=\"\",\"\",VLOOKUP($G73,{\"الخالدي\",\"محمد الخالدي\";\"البايونيه\",\"الهاشمي\";\"الراكه\",\"الهاشمي\";\"الجوهرة\",\"الهديب\";\"ناصر\",\"ابو سعود\"},2,0))","v":""}]
[null,null,null,null,null,null,null,null,null,null,null,null,null,null,null,{"$f":"IF($G74=\"\",\"\",VLOOKUP($G74,{\"الخالدي\",\"محمد الخالدي\";\"البايونيه\",\"الهاشمي\";\"الراكه\",\"الهاشمي\";\"الجوهرة\",\"الهديب\";\"ناصر\",\"ابو سعود\"},2,0))","v":""}]
[null,null,null,null,null,null,null,null,null,null,null,null,null,null,null,{"$f":"IF($G75=\"\",\"\",VLOOKUP($G75,{\"الخالدي\",\"محمد الخالدي\";\"البايونيه\",\"الهاشمي\";\"الراكه\",\"الهاشمي\";\"الجوهرة\",\"الهديب\";\"ناصر\",\"ابو سعود\"},2,0))","v":""}]
[null,null,null,null,null,null,null,null,null,null,null,null,null,null,null,{"$f":"IF($G76=\"\",\"\",VLOOKUP($G76,{\"الخالدي\",\"محمد الخالدي\";\"البايونيه\",\"الهاشمي\";\"الراكه\",\"الهاشمي\";\"الجوهرة\",\"الهديب\";\"ناصر\",\"ابو سعود\"},2,0))","v":""}]
[null,null,null,null,null,null,null,null,null,null,null,null,null,null,null,{"$f":"IF($G77=\"\",\"\",VLOOKUP($G77,{\"الخالدي\",\"محمد الخالدي\";\"البايونيه\",\"الهاشمي\";\"الراكه\",\"الهاشمي\";\"الجوهرة\",\"الهديب\";\"ناصر\",\"ابو سعود\"},2,0))","v":""}]
[null,null,null,null,null,null,null,null,null,null,null,null,null,null,null,{"$f":"IF($G78=\"\",\"\",VLOOKUP($G78,{\"الخالدي\",\"محمد الخالدي\";\"البايونيه\",\"الهاشمي\";\"الراكه\",\"الهاشمي\";\"الجوهرة\",\"الهديب\";\"ناصر\",\"ابو سعود\"},2,0))","v":""}]
[null,null,null,null,null,null,null,null,null,null,null,null,null,null,null,{"$f":"IF($G79=\"\",\"\",VLOOKUP($G79,{\"الخالدي\",\"محمد الخالدي\";\"البايونيه\",\"الهاشمي\";\"الراكه\",\"الهاشمي\";\"الجوهرة\",\"الهديب\";\"ناصر\",\"ابو سعود\"},2,0))","v":""}]
[null,null,null,null,null,null,null,null,null,null,null,null,null,null,null,{"$f":"IF($G80=\"\",\"\",VLOOKUP($G80,{\"الخالدي\",\"محمد الخالدي\";\"البايونيه\",\"الهاشمي\";\"الراكه\",\"الهاشمي\";\"الجوهرة\",\"الهديب\";\"ناصر\",\"ابو سعود\"},2,0))","v":""}]
[null,null,null,null,null,null,null,null,null,null,null,null,null,null,null,{"$f":"IF($G81=\"\",\"\",VLOOKUP($G81,{\"الخالدي\",\"محمد الخالدي\";\"البايونيه\",\"الهاشمي\";\"الراكه\",\"الهاشمي\";\"الجوهرة\",\"الهديب\";\"ناصر\",\"ابو سعود\"},2,0))","v":""}]
[null,null,null,null,null,null,null,null,null,null,null,null,null,null,null,{"$f":"IF($G82=\"\",\"\",VLOOKUP($G82,{\"الخالدي\",\"محمد الخالدي\";\"البايونيه\",\"الهاشمي\";\"الراكه\",\"الهاشمي\";\"الجوهرة\",\"الهديب\";\"ناصر\",\"ابو سعود\"},2,0))","v":""}]
[null,null,null,null,null,null,null,null,null,null,null,null,null,null,null,{"$f":"IF($G83=\"\",\"\",VLOOKUP($G83,{\"الخالدي\",\"محمد الخالدي\";\"البايونيه\",\"الهاشمي\";\"الراكه\",\"الهاشمي\";\"الجوهرة\",\"الهديب\";\"ناصر\",\"ابو سعود\"},2,0))","v":""}]
[null,null,null,null,null,null,null,null,null,null,null,null,null,null,null,{"$f":"IF($G84=\"\",\"\",VLOOKUP($G84,{\"الخالدي\",\"محمد الخالدي\";\"البايونيه\",\"الهاشمي\";\"الراكه\",\"الهاشمي\";\"الجوهرة\",\"الهديب\";\"ناصر\",\"ابو سعود\"},2,0))","v":""}]
[null,null,null,null,null,null,null,null,null,null,null,null,null,null,null,{"$f":"IF($G85=\"\",\"\",VLOOKUP($G85,{\"الخالدي\",\"محمد الخالدي\";\"البايونيه\",\"الهاشمي\";\"الراكه\",\"الهاشمي\";\"الجوهرة\",\"الهديب\";\"ناصر\",\"ابو سعود\"},2,0))","v":""}]
[null,null,null,null,null,null,null,null,null,null,null,null,null,null,null,{"$f":"IF($G86=\"\",\"\",VLOOKUP($G86,{\"الخالدي\",\"محمد الخالدي\";\"البايونيه\",\"الهاشمي\";\"الراكه\",\"الهاشمي\";\"الجوهرة\",\"الهديب\";\"ناصر\",\"ابو سعود\"},2,0))","v":""}]
[null,null,null,null,null,null,null,null,null,null,null,null,null,null,null,{"$f":"IF($G87=\"\",\"\",VLOOKUP($G87,{\"الخالدي\",\"محمد الخالدي\";\"البايونيه\",\"الهاشمي\";\"الراكه\",\"الهاشمي\";\"الجوهرة\",\"الهديب\";\"ناصر\",\"ابو سعود\"},2,0))","v":""}]
[null,null,null,null,null,null,null,null,null,null,null,null,null,null,null,{"$f":"IF($G88=\"\",\"\",VLOOKUP($G88,{\"الخالدي\",\"محمد الخالدي\";\"البايونيه\",\"الهاشمي\";\"الراكه\",\"الهاشمي\";\"الجوهرة\",\"الهديب\";\"ناصر\",\"ابو سعود\"},2,0))","v":""}]
[null,null,null,null,null,null,null,null,null,null,null,null,null,null,null,{"$f":"IF($G89=\"\",\"\",VLOOKUP($G89,{\"الخالدي\",\"محمد الخالدي\";\"البايونيه\",\"الهاشمي\";\"الراكه\",\"الهاشمي\";\"الجوهرة\",\"الهديب\";\"ناصر\",\"ابو سعود\"},2,0))","v":""}]
[null,null,null,null,null,null,null,null,null,null,null,null,null,null,null,{"$f":"IF($G90=\"\",\"\",VLOOKUP($G90,{\"الخالدي\",\"محمد الخالدي\";\"البايونيه\",\"الهاشمي\";\"الراكه\",\"الهاشمي\";\"الجوهرة\",\"الهديب\";\"ناصر\",\"ابو سعود\"},2,0))","v":""}]
[null,null,null,null,null,null,null,null,null,null,null,null,null,null,null,{"$f":"IF($G91=\"\",\"\",VLOOKUP($G91,{\"الخالدي\",\"محمد الخالدي\";\"البايونيه\",\"الهاشمي\";\"الراكه\",\"الهاشمي\";\"الجوهرة\",\"الهديب\";\"ناصر\",\"ابو سعود\"},2,0))","v":""}]
[null,null,null,null,null,null,null,null,null,null,null,null,null,null,null,{"$f":"IF($G92=\"\",\"\",VLOOKUP($G92,{\"الخالدي\",\"محمد الخالدي\";\"البايونيه\",\"الهاشمي\";\"الراكه\",\"الهاشمي\";\"الجوهرة\",\"الهديب\";\"ناصر\",\"ابو سعود\"},2,0))","v":""}]
[null,null,null,null,null,null,null,null,null,null,null,null,null,null,null,{"$f":"IF($G93=\"\",\"\",VLOOKUP($G93,{\"الخالدي\",\"محمد الخالدي\";\"البايونيه\",\"الهاشمي\";\"الراكه\",\"الهاشمي\";\"الجوهرة\",\"الهديب\";\"ناصر\",\"ابو سعود\"},2,0))","v":""}]
[null,null,null,null,null,null,null,null,null,null,null,null,null,null,null,{"$f":"IF($G94=\"\",\"\",VLOOKUP($G94,{\"الخالدي\",\"محمد الخالدي\";\"البايونيه\",\"الهاشمي\";\"الراكه\",\"الهاشمي\";\"الجوهرة\",\"الهديب\";\"ناصر\",\"ابو سعود\"},2,0))","v":""}]
[null,null,null,null,null,null,null,null,null,null,null,null,null,null,null,{"$f":"IF($G95=\"\",\"\",VLOOKUP($G95,{\"الخالدي\",\"محمد الخالدي\";\"البايونيه\",\"الهاشمي\";\"الراكه\",\"الهاشمي\";\"الجوهرة\",\"الهديب\";\"ناصر\",\"ابو سعود\"},2,0))","v":""}]
[null,null,null,null,null,null,null,null,null,null,null,null,null,null,null,{"$f":"IF($G96=\"\",\"\",VLOOKUP($G96,{\"الخالدي\",\"محمد الخالدي\";\"البايونيه\",\"الهاشمي\";\"الراكه\",\"الهاشمي\";\"الجوهرة\",\"الهديب\";\"ناصر\",\"ابو سعود\"},2,0))","v":""}]
[null,null,null,null,null,null,null,null,null,null,null,null,null,null,null,{"$f":"IF($G97=\"\",\"\",VLOOKUP($G97,{\"الخالدي\",\"محمد الخالدي\";\"البايونيه\",\"الهاشمي\";\"الراكه\",\"الهاشمي\";\"الجوهرة\",\"الهديب\";\"ناصر\",\"ابو سعود\"},2,0))","v":""}]
[null,null,null,null,null,null,null,null,null,null,null,null,null,null,null,{"$f":"IF($G98=\"\",\"\",VLOOKUP($G98,{\"الخالدي\",\"محمد الخالدي\";\"البايونيه\",\"الهاشمي\";\"الراكه\",\"الهاشمي\";\"الجوهرة\",\"الهديب\";\"ناصر\",\"ابو سعود\"},2,0))","v":""}]
[null,null,null,null,null,null,null,null,null,null,null,null,null,null,null,{"$f":"IF($G99=\"\",\"\",VLOOKUP($G99,{\"الخالدي\",\"محمد الخالدي\";\"البايونيه\",\"الهاشمي\";\"الراكه\",\"الهاشمي\";\"الجوهرة\",\"الهديب\";\"ناصر\",\"ابو سعود\"},2,0))","v":""}]
[null,null,null,null,null,null,null,null,null,null,null,null,null,null,null,{"$f":"IF($G100=\"\",\"\",VLOOKUP($G100,{\"الخالدي\",\"محمد الخالدي\";\"البايونيه\",\"الهاشمي\";\"الراكه\",\"الهاشمي\";\"الجوهرة\",\"الهديب\";\"ناصر\",\"ابو سعود\"},2,0))","v":""}]
[null,null,null,null,null,null,null,null,null,null,null,null,null,null,null,{"$f":"IF($G101=\"\",\"\",VLOOKUP($G101,{\"الخالدي\",\"محمد الخالدي\";\"البايونيه\",\"الهاشمي\";\"الراكه\",\"الهاشمي\";\"الجوهرة\",\"الهديب\";\"ناصر\",\"ابو سعود\"},2,0))","v":""}]
[null,null,null,null,null,null,null,null,null,null,null,null,null,null,null,{"$f":"IF($G102=\"\",\"\",VLOOKUP($G102,{\"الخالدي\",\"محمد الخالدي\";\"البايونيه\",\"الهاشمي\";\"الراكه\",\"الهاشمي\";\"الجوهرة\",\"الهديب\";\"ناصر\",\"ابو سعود\"},2,0))","v":""}]
[null,null,null,null,null,null,null,null,null,null,null,null,null,null,null,{"$f":"IF($G103=\"\",\"\",VLOOKUP($G103,{\"الخالدي\",\"محمد الخالدي\";\"البايونيه\",\"الهاشمي\";\"الراكه\",\"الهاشمي\";\"الجوهرة\",\"الهديب\";\"ناصر\",\"ابو سعود\"},2,0))","v":""}]
[null,null,null,null,null,null,null,null,null,null,null,null,null,null,null,{"$f":"IF($G104=\"\",\"\",VLOOKUP($G104,{\"الخالدي\",\"محمد الخالدي\";\"البايونيه\",\"الهاشمي\";\"الراكه\",\"الهاشمي\";\"الجوهرة\",\"الهديب\";\"ناصر\",\"ابو سعود\"},2,0))","v":""}]
[null,null,null,null,null,null,null,null,null,null,null,null,null,null,null,{"$f":"IF($G105=\"\",\"\",VLOOKUP($G105,{\"الخالدي\",\"محمد الخالدي\";\"البايونيه\",\"الهاشمي\";\"الراكه\",\"الهاشمي\";\"الجوهرة\",\"الهديب\";\"ناصر\",\"ابو سعود\"},2,0))","v":""}]
[null,null,null,null,null,null,null,null,null,null,null,null,null,null,null,{"$f":"IF($G106=\"\",\"\",VLOOKUP($G106,{\"الخالدي\",\"محمد الخالدي\";\"البايونيه\",\"الهاشمي\";\"الراكه\",\"الهاشمي\";\"الجوهرة\",\"الهديب\";\"ناصر\",\"ابو سعود\"},2,0))","v":""}]
[null,null,null,null,null,null,null,null,null,null,null,null,null,null,null,{"$f":"IF($G107=\"\",\"\",VLOOKUP($G107,{\"الخالدي\",\"محمد الخالدي\";\"البايونيه\",\"الهاشمي\";\"الراكه\",\"الهاشمي\";\"الجوهرة\",\"الهديب\";\"ناصر\",\"ابو سعود\"},2,0))","v":""}]
[null,null,null,null,null,null,null,null,null,null,null,null,null,null,null,{"$f":"IF($G108=\"\",\"\",VLOOKUP($G108,{\"الخالدي\",\"محمد الخالدي\";\"البايونيه\",\"الهاشمي\";\"الراكه\",\"الهاشمي\";\"الجوهرة\",\"الهديب\";\"ناصر\",\"ابو سعود\"},2,0))","v":""}]
[null,null,null,null,null,null,null,null,null,null,null,null,null,null,null,{"$f":"IF($G109=\"\",\"\",VLOOKUP($G109,{\"الخالدي\",\"محمد الخالدي\";\"البايونيه\",\"الهاشمي\";\"الراكه\",\"الهاشمي\";\"الجوهرة\",\"الهديب\";\"ناصر\",\"ابو سعود\"},2,0))","v":""}]
[null,null,null,null,null,null,null,null,null,null,null,null,null,null,null,{"$f":"IF($G110=\"\",\"\",VLOOKUP($G110,{\"الخالدي\",\"محمد الخالدي\";\"البايونيه\",\"الهاشمي\";\"الراكه\",\"الهاشمي\";\"الجوهرة\",\"الهديب\";\"ناصر\",\"ابو سعود\"},2,0))","v":""}]
[null,null,null,null,null,null,null,null,null,null,null,null,null,null,null,{"$f":"IF($G111=\"\",\"\",VLOOKUP($G111,{\"الخالدي\",\"محمد الخالدي\";\"البايونيه\",\"الهاشمي\";\"الراكه\",\"الهاشمي\";\"الجوهرة\",\"الهديب\";\"ناصر\",\"ابو سعود\"},2,0))","v":""}]
[null,null,null,null,null,null,null,null,null,null,null,null,null,null,null,{"$f":"IF($G112=\"\",\"\",VLOOKUP($G112,{\"الخالدي\",\"محمد الخالدي\";\"البايونيه\",\"الهاشمي\";\"الراكه\",\"الهاشمي\";\"الجوهرة\",\"الهديب\";\"ناصر\",\"ابو سعود\"},2,0))","v":""}]
[null,null,null,null,null,null,null,null,null,null,null,null,null,null,null,{"$f":"IF($G113=\"\",\"\",VLOOKUP($G113,{\"الخالدي\",\"محمد الخالدي\";\"البايونيه\",\"الهاشمي\";\"الراكه\",\"الهاشمي\";\"الجوهرة\",\"الهديب\";\"ناصر\",\"ابو سعود\"},2,0))","v":""}]
[null,null,null,null,null,null,null,null,null,null,null,null,null,null,null,{"$f":"IF($G114=\"\",\"\",VLOOKUP($G114,{\"الخالدي\",\"محمد الخالدي\";\"البايونيه\",\"الهاشمي\";\"الراكه\",\"الهاشمي\";\"الجوهرة\",\"الهديب\";\"ناصر\",\"ابو سعود\"},2,0))","v":""}]
[null,null,null,null,null,null,null,null,null,null,null,null,null,null,null,{"$f":"IF($G115=\"\",\"\",VLOOKUP($G115,{\"الخالدي\",\"محمد الخالدي\";\"البايونيه\",\"الهاشمي\";\"الراكه\",\"الهاشمي\";\"الجوهرة\",\"الهديب\";\"ناصر\",\"ابو سعود\"},2,0))","v":""}]
[null,null,null,null,null,null,null,null,null,null,null,null,null,null,null,{"$f":"IF($G116=\"\",\"\",VLOOKUP($G116,{\"الخالدي\",\"محمد الخالدي\";\"البايونيه\",\"الهاشمي\";\"الراكه\",\"الهاشمي\";\"الجوهرة\",\"الهديب\";\"ناصر\",\"ابو سعود\"},2,0))","v":""}]
[null,null,null,null,null,null,null,null,null,null,null,null,null,null,null,{"$f":"IF($G117=\"\",\"\",VLOOKUP($G117,{\"الخالدي\",\"محمد الخالدي\";\"البايونيه\",\"الهاشمي\";\"الراكه\",\"الهاشمي\";\"الجوهرة\",\"الهديب\";\"ناصر\",\"ابو سعود\"},2,0))","v":""}]
[null,null,null,null,null,null,null,null,null,null,null,null,null,null,null,{"$f":"IF($G118=\"\",\"\",VLOOKUP($G118,{\"الخالدي\",\"محمد الخالدي\";\"البايونيه\",\"الهاشمي\";\"الراكه\",\"الهاشمي\";\"الجوهرة\",\"الهديب\";\"ناصر\",\"ابو سعود\"},2,0))","v":""}]
[null,null,null,null,null,null,null,null,null,null,null,null,null,null,null,{"$f":"IF($G119=\"\",\"\",VLOOKUP($G119,{\"الخالدي\",\"محمد الخالدي\";\"البايونيه\",\"الهاشمي\";\"الراكه\",\"الهاشمي\";\"الجوهرة\",\"الهديب\";\"ناصر\",\"ابو سعود\"},2,0))","v":""}]
[null,null,null,null,null,null,null,null,null,null,null,null,null,null,null,{"$f":"IF($G120=\"\",\"\",VLOOKUP($G120,{\"الخالدي\",\"محمد الخالدي\";\"البايونيه\",\"الهاشمي\";\"الراكه\",\"الهاشمي\";\"الجوهرة\",\"الهديب\";\"ناصر\",\"ابو سعود\"},2,0))","v":""}]
[null,null,null,null,null,null,null,null,null,null,null,null,null,null,null,{"$f":"IF($G121=\"\",\"\",VLOOKUP($G121,{\"الخالدي\",\"محمد الخالدي\";\"البايونيه\",\"الهاشمي\";\"الراكه\",\"الهاشمي\";\"الجوهرة\",\"الهديب\";\"ناصر\",\"ابو سعود\"},2,0))","v":""}]
[null,null,null,null,null,null,null,null,null,null,null,null,null,null,null,{"$f":"IF($G122=\"\",\"\",VLOOKUP($G122,{\"الخالدي\",\"محمد الخالدي\";\"البايونيه\",\"الهاشمي\";\"الراكه\",\"الهاشمي\";\"الجوهرة\",\"الهديب\";\"ناصر\",\"ابو سعود\"},2,0))","v":""}]
[null,null,null,null,null,null,null,null,null,null,null,null,null,null,null,{"$f":"IF($G123=\"\",\"\",VLOOKUP($G123,{\"الخالدي\",\"محمد الخالدي\";\"البايونيه\",\"الهاشمي\";\"الراكه\",\"الهاشمي\";\"الجوهرة\",\"الهديب\";\"ناصر\",\"ابو سعود\"},2,0))","v":""}]
[null,null,null,null,null,null,null,null,null,null,null,null,null,null,null,{"$f":"IF($G124=\"\",\"\",VLOOKUP($G124,{\"الخالدي\",\"محمد الخالدي\";\"البايونيه\",\"الهاشمي\";\"الراكه\",\"الهاشمي\";\"الجوهرة\",\"الهديب\";\"ناصر\",\"ابو سعود\"},2,0))","v":""}]
[null,null,null,null,null,null,null,null,null,null,null,null,null,null,null,{"$f":"IF($G125=\"\",\"\",VLOOKUP($G125,{\"الخالدي\",\"محمد الخالدي\";\"البايونيه\",\"الهاشمي\";\"الراكه\",\"الهاشمي\";\"الجوهرة\",\"الهديب\";\"ناصر\",\"ابو سعود\"},2,0))","v":""}]
[null,null,null,null,null,null,null,null,null,null,null,null,null,null,null,{"$f":"IF($G126=\"\",\"\",VLOOKUP($G126,{\"الخالدي\",\"محمد الخالدي\";\"البايونيه\",\"الهاشمي\";\"الراكه\",\"الهاشمي\";\"الجوهرة\",\"الهديب\";\"ناصر\",\"ابو سعود\"},2,0))","v":""}]
[null,null,null,null,null,null,null,null,null,null,null,null,null,null,null,{"$f":"IF($G127=\"\",\"\",VLOOKUP($G127,{\"الخالدي\",\"محمد الخالدي\";\"البايونيه\",\"الهاشمي\";\"الراكه\",\"الهاشمي\";\"الجوهرة\",\"الهديب\";\"ناصر\",\"ابو سعود\"},2,0))","v":""}]
[null,null,null,null,null,null,null,null,null,null,null,null,null,null,null,{"$f":"IF($G128=\"\",\"\",VLOOKUP($G128,{\"الخالدي\",\"محمد الخالدي\";\"البايونيه\",\"الهاشمي\";\"الراكه\",\"الهاشمي\";\"الجوهرة\",\"الهديب\";\"ناصر\",\"ابو سعود\"},2,0))","v":""}]
[null,null,null,null,null,null,null,null,null,null,null,null,null,null,null,{"$f":"IF($G129=\"\",\"\",VLOOKUP($G129,{\"الخالدي\",\"محمد الخالدي\";\"البايونيه\",\"الهاشمي\";\"الراكه\",\"الهاشمي\";\"الجوهرة\",\"الهديب\";\"ناصر\",\"ابو سعود\"},2,0))","v":""}]
[null,null,null,null,null,null,null,null,null,null,null,null,null,null,null,{"$f":"IF($G130=\"\",\"\",VLOOKUP($G130,{\"الخالدي\",\"محمد الخالدي\";\"البايونيه\",\"الهاشمي\";\"الراكه\",\"الهاشمي\";\"الجوهرة\",\"الهديب\";\"ناصر\",\"ابو سعود\"},2,0))","v":""}]
[null,null,null,null,null,null,null,null,null,null,null,null,null,null,null,{"$f":"IF($G131=\"\",\"\",VLOOKUP($G131,{\"الخالدي\",\"محمد الخالدي\";\"البايونيه\",\"الهاشمي\";\"الراكه\",\"الهاشمي\";\"الجوهرة\",\"الهديب\";\"ناصر\",\"ابو سعود\"},2,0))","v":""}]
[null,null,null,null,null,null,null,null,null,null,null,null,null,null,null,{"$f":"IF($G132=\"\",\"\",VLOOKUP($G132,{\"الخالدي\",\"محمد الخالدي\";\"البايونيه\",\"الهاشمي\";\"الراكه\",\"الهاشمي\";\"الجوهرة\",\"الهديب\";\"ناصر\",\"ابو سعود\"},2,0))","v":""}]
[null,null,null,null,null,null,null,null,null,null,null,null,null,null,null,{"$f":"IF($G133=\"\",\"\",VLOOKUP($G133,{\"الخالدي\",\"محمد الخالدي\";\"البايونيه\",\"الهاشمي\";\"الراكه\",\"الهاشمي\";\"الجوهرة\",\"الهديب\";\"ناصر\",\"ابو سعود\"},2,0))","v":""}]
[null,null,null,null,null,null,null,null,null,null,null,null,null,null,null,{"$f":"IF($G134=\"\",\"\",VLOOKUP($G134,{\"الخالدي\",\"محمد الخالدي\";\"البايونيه\",\"الهاشمي\";\"الراكه\",\"الهاشمي\";\"الجوهرة\",\"الهديب\";\"ناصر\",\"ابو سعود\"},2,0))","v":""}]
[null,null,null,null,null,null,null,null,null,null,null,null,null,null,null,{"$f":"IF($G135=\"\",\"\",VLOOKUP($G135,{\"الخالدي\",\"محمد الخالدي\";\"البايونيه\",\"الهاشمي\";\"الراكه\",\"الهاشمي\";\"الجوهرة\",\"الهديب\";\"ناصر\",\"ابو سعود\"},2,0))","v":""}]
[null,null,null,null,null,null,null,null,null,null,null,null,null,null,null,{"$f":"IF($G136=\"\",\"\",VLOOKUP($G136,{\"الخالدي\",\"محمد الخالدي\";\"البايونيه\",\"الهاشمي\";\"الراكه\",\"الهاشمي\";\"الجوهرة\",\"الهديب\";\"ناصر\",\"ابو سعود\"},2,0))","v":""}]
[null,null,null,null,null,null,null,null,null,null,null,null,null,null,null,{"$f":"IFERROR(IF(G137=$V$3,$W$3,IF(G137=$V$4,$W$4,IF(G137=$V$5,$W$5,IF(G137=$V$6,$W$6,IF(G137=$V$7,$W$7,\"\"))))),0)","v":0}]
[null,null,null,null,null,null,null,null,null,null,null,null,null,null,null,0]
[null,null,null,null,null,null,null,null,null,null,null,null,null,null,null,0]
[null,null,null,null,null,null,null,null,null,null,null,null,null,null,null,0]
[null,null,null,null,null,null,null,null,null,null,null,null,null,null,null,0]
[null,null,null,null,null,null,null,null,null,null,null,null,null,null,null,0]
[null,null,null,null,null,null,null,null,null,null,null,null,null,null,null,0]
[null,null,null,null,null,null,null,null,null,null,null,null,null,null,null,0]
[null,null,null,null,null,null,null,null,null,null,null,null,null,null,null,0]
[null,null,null,null,null,null,null,null,null,null,null,null,null,null,null,0]
[null,null,null,null,null,null,null,null,null,null,null,null,null,null,null,0]
[null,null,null,null,null,null,null,null,null,null,null,null,null,null,null,0]
[null,null,null,null,null,null,null,null,null,null,null,null,null,null,null,0]
[null,null,null,null,null,null,null,null,null,null,null,null,null,null,null,0]
[null,null,null,null,null,null,null,null,null,null,null,null,null,null,null,0]
[null,null,null,null,null,null,null,null,null,null,null,null,null,null,null,0]
[null,null,null,null,null,null,null,null,null,null,null,null,null,null,null,0]
[null,null,null,null,null,null,null,null,null,null,null,null,null,null,null,0]
[null,null,null,null,null,null,null,null,null,null,null,null,null,null,null,0]
[null,null,null,null,null,null,null,null,null,null,null,null,null,null,null,0]
[null,null,null,null,null,null,null,null,null,null,null,null,null,null,null,0]
[null,null,null,null,null,null,null,null,null,null,null,null,null,null,null,0]
[null,null,null,null,null,null,null,null,null,null,null,null,null,null,null,0]
[null,null,null,null,null,null,null,null,null,null,null,null,null,null,null,0]
[null,null,null,null,null,null,null,null,null,null,null,null,null,null,null,0]
[null,null,null,null,null,null,null,null,null,null,null,null,null,null,null,0]
[null,null,null,null,null,null,null,null,null,null,null,null,null,null,null,0]
[null,null,null,null,null,null,null,null,null,null,null,null,null,null,null,0]
[null,null,null,null,null,null,null,null,null,null,null,null,null,null,null,0]
[null,null,null,null,null,null,null,null,null,null,null,null,null,null,null,0]
[null,null,null,null,null,null,null,null,null,null,null,null,null,null,null,0]
[null,null,null,null,null,null,null,null,null,null,null,null,null,null,null,0]
[null,null,null,null,null,null,null,null,null,null,null,null,null,null,null,0]
[null,null,null,null,null,null,null,null,null,null,null,null,null,null,null,0]
[null,null,null,null,null,null,null,null,null,null,null,null,null,null,null,0]
[null,null,null,null,null,null,null,null,null,null,null,null,null,null,null,0]
[null,null,null,null,null,null,null,null,null,null,null,null,null,null,null,0]
[null,null,null,null,null,null,null,null,null,null,null,null,null,null,null,0]
[null,null,null,null,null,null,null,null,null,null,null,null,null,null,null,0]
[null,null,null,null,null,null,null,null,null,null,null,null,null,null,null,0]
[null,null,null,null,null,null,null,null,null,null,null,null,null,null,null,0]
[null,null,null,null,null,null,null,null,null,null,null,null,null,null,null,0]
[null,null,null,null,null,null,null,null,null,null,null,null,null,null,null,0]
[null,null,null,null,null,null,null,null,null,null,null,null,null,null,null,0]
[null,null,null,null,null,null,null,null,null,null,null,null,null,null,null,0]
[null,null,null,null,null,null,null,null,null,null,null,null,null,null,null,0]
[null,null,null,null,null,null,null,null,null,null,null,null,null,null,null,0]
[null,null,null,null,null,null,null,null,null,null,null,null,null,null,null,0]
[null,null,null,null,null,null,null,null,null,null,null,null,null,null,null,0]
[null,null,null,null,null,null,null,null,null,null,null,null,null,null,null,0]
[null,null,null,null,null,null,null,null,null,null,null,null,null,null,null,0]
[null,null,null,null,null,null,null,null,null,null,null,null,null,null,null,0]
[null,null,null,null,null,null,null,null,null,null,null,null,null,null,null,0]
[null,null,null,null,null,null,null,null,null,null,null,null,null,null,null,0]
[null,null,null,null,null,null,null,null,null,null,null,null,null,null,null,0]
[null,null,null,null,null,null,null,null,null,null,null,null,null,null,null,0]
[null,null,null,null,null,null,null,null,null,null,null,null,null,null,null,0]
[null,null,null,null,null,null,null,null,null,null,null,null,null,null,null,0]
[null,null,null,null,null,null,null,null,null,null,null,null,null,null,null,0]
[null,null,null,null,null,null,null,null,null,null,null,null,null,null,null,0]
[null,null,null,null,null,null,null,null,null,null,null,null,null,null,null,0]
[null,null,null,null,null,null,null,null,null,null,null,null,null,null,null,0]
[null,null,null,null,null,null,null,null,null,null,null,null,null,null,null,0]
[null,null,null,null,null,null,null,null,null,null,null,null,null,null,null,0]
[null,null,null,null,null,null,null,null,null,null,null,null,null,null,null,{"$f":"IFERROR(IF(G201=$V$3,$W$3,IF(G201=$V$4,$W$4,IF(G201=$V$5,$W$5,IF(G201=$V$6,$W$6,IF(G201=$V$7,$W$7,\"\"))))),0)","v":0}]
[null,null,null,null,null,null,null,null,null,null,null,null,null,null,null,0]
[null,null,null,null,null,null,null,null,null,null,null,null,null,null,null,0]
[null,null,null,null,null,null,null,null,null,null,null,null,null,null,null,0]
[null,null,null,null,null,null,null,null,null,null,null,null,null,null,null,0]
[null,null,null,null,null,null,null,null,null,null,null,null,null,null,null,0]
[null,null,null,null,null,null,null,null,null,null,null,null,null,null,null,0]
[null,null,null,null,null,null,null,null,null,null,null,null,null,null,null,0]
[null,null,null,null,null,null,null,null,null,null,null,null,null,null,null,0]
[null,null,null,null,null,null,null,null,null,null,null,null,null,null,null,0]
[null,null,null,null,null,null,null,null,null,null,null,null,null,null,null,0]
[null,null,null,null,null,null,null,null,null,null,null,null,null,null,null,0]
[null,null,null,null,null,null,null,null,null,null,null,null,null,null,null,0]
[null,null,null,null,null,null,null,null,null,null,null,null,null,null,null,0]
[null,null,null,null,null,null,null,null,null,null,null,null,null,null,null,0]
[null,null,null,null,null,null,null,null,null,null,null,null,null,null,null,0]
[null,null,null,null,null,null,null,null,null,null,null,null,null,null,null,0]
[null,null,null,null,null,null,null,null,null,null,null,null,null,null,null,0]
[null,null,null,null,null,null,null,null,null,null,null,null,null,null,null,0]
[null,null,null,null,null,null,null,null,null,null,null,null,null,null,null,0]
[null,null,null,null,null,null,null,null,null,null,null,null,null,null,null,0]
[null,null,null,null,null,null,null,null,null,null,null,null,null,null,null,0]
[null,null,null,null,null,null,null,null,null,null,null,null,null,null,null,0]
[null,null,null,null,null,null,null,null,null,null,null,null,null,null,null,0]
[null,null,null,null,null,null,null,null,null,null,null,null,null,null,null,0]
[null,null,null,null,null,null,null,null,null,null,null,null,null,null,null,0]
[null,null,null,null,null,null,null,null,null,null,null,null,null,null,null,0]
[null,null,null,null,null,null,null,null,null,null,null,null,null,null,null,0]
[null,null,null,null,null,null,null,null,null,null,null,null,null,null,null,0]
[null,null,null,null,null,null,null,null,null,null,null,null,null,null,null,0]
[null,null,null,null,null,null,null,null,null,null,null,null,null,null,null,0]
[null,null,null,null,null,null,null,null,null,null,null,null,null,null,null,0]
[null,null,null,null,null,null,null,null,null,null,null,null,null,null,null,0]
[null,null,null,null,null,null,null,null,null,null,null,null,null,null,null,0]
[null,null,null,null,null,null,null,null,null,null,null,null,null,null,null,0]
[null,null,null,null,null,null,null,null,null,null,null,null,null,null,null,0]
[null,null,null,null,null,null,null,null,null,null,null,null,null,null,null,0]
[null,null,null,null,null,null,null,null,null,null,null,null,null,null,null,0]
[null,null,null,null,null,null,null,null,null,null,null,null,null,null,null,0]
[null,null,null,null,null,null,null,null,null,null,null,null,null,null,null,0]
[null,null,null,null,null,null,null,null,null,null,null,null,null,null,null,0]
[null,null,null,null,null,null,null,null,null,null,null,null,null,null,null,0]
[null,null,null,null,null,null,null,null,null,null,null,null,null,null,null,0]
[null,null,null,null,null,null,null,null,null,null,null,null,null,null,null,0]
[null,null,null,null,null,null,null,null,null,null,null,null,null,null,null,0]
[null,null,null,null,null,null,null,null,null,null,null,null,null,null,null,0]
[null,null,null,null,null,null,null,null,null,null,null,null,null,null,null,0]
[null,null,null,null,null,null,null,null,null,null,null,null,null,null,null,0]
[null,null,null,null,null,null,null,null,null,null,null,null,null,null,null,0]
[null,null,null,null,null,null,null,null,null,null,null,null,null,null,null,0]
[null,null,null,null,null,null,null,null,null,null,null,null,null,null,null,0]
[null,null,null,null,null,null,null,null,null,null,null,null,null,null,null,0]
[null,null,null,null,null,null,null,null,null,null,null,null,null,null,null,0]
[null,null,null,null,null,null,null,null,null,null,null,null,null,null,null,0]
[null,null,null,null,null,null,null,null,null,null,null,null,null,null,null,0]
[null,null,null,null,null,null,null,null,null,null,null,null,null,null,null,0]
[null,null,null,null,null,null,null,null,null,null,null,null,null,null,null,0]
[null,null,null,null,null,null,null,null,null,null,null,null,null,null,null,0]
[null,null,null,null,null,null,null,null,null,null,null,null,null,null,null,0]
[null,null,null,null,null,null,null,null,null,null,null,null,null,null,null,0]
[null,null,null,null,null,null,null,null,null,null,null,null,null,null,null,0]
[null,null,null,null,null,null,null,null,null,null,null,null,null,null,null,0]
[null,null,null,null,null,null,null,null,null,null,null,null,null,null,null,0]
[null,null,null,null,null,null,null,null,null,null,null,null,null,null,null,0]
[null,null,null,null,null,null,null,null,null,null,null,null,null,null,null,{"$f":"IFERROR(IF(G265=$V$3,$W$3,IF(G265=$V$4,$W$4,IF(G265=$V$5,$W$5,IF(G265=$V$6,$W$6,IF(G265=$V$7,$W$7,\"\"))))),0)","v":0}]
[null,null,null,null,null,null,null,null,null,null,null,null,null,null,null,0]
[null,null,null,null,null,null,null,null,null,null,null,null,null,null,null,0]
[null,null,null,null,null,null,null,null,null,null,null,null,null,null,null,0]
[null,null,null,null,null,null,null,null,null,null,null,null,null,null,null,0]
[null,null,null,null,null,null,null,null,null,null,null,null,null,null,null,0]
[null,null,null,null,null,null,null,null,null,null,null,null,null,null,null,0]
[null,null,null,null,null,null,null,null,null,null,null,null,null,null,null,0]
[null,null,null,null,null,null,null,null,null,null,null,null,null,null,null,0]
[null,null,null,null,null,null,null,null,null,null,null,null,null,null,null,0]
[null,null,null,null,null,null,null,null,null,null,null,null,null,null,null,0]
[null,null,null,null,null,null,null,null,null,null,null,null,null,null,null,0]
[null,null,null,null,null,null,null,null,null,null,null,null,null,null,null,0]
[null,null,null,null,null,null,null,null,null,null,null,null,null,null,null,0]
[null,null,null,null,null,null,null,null,null,null,null,null,null,null,null,0]
[null,null,null,null,null,null,null,null,null,null,null,null,null,null,null,0]
[null,null,null,null,null,null,null,null,null,null,null,null,null,null,null,0]
[null,null,null,null,null,null,null,null,null,null,null,null,null,null,null,0]
[null,null,null,null,null,null,null,null,null,null,null,null,null,null,null,0]
[null,null,null,null,null,null,null,null,null,null,null,null,null,null,null,0]
[null,null,null,null,null,null,null,null,null,null,null,null,null,null,null,0]
[null,null,null,null,null,null,null,null,null,null,null,null,null,null,null,0]
[null,null,null,null,null,null,null,null,null,null,null,null,null,null,null,0]
[null,null,null,null,null,null,null,null,null,null,null,null,null,null,null,0]
[null,null,null,null,null,null,null,null,null,null,null,null,null,null,null,0]
[null,null,null,null,null,null,null,null,null,null,null,null,null,null,null,0]
[null,null,null,null,null,null,null,null,null,null,null,null,null,null,null,0]
[null,null,null,null,null,null,null,null,null,null,null,null,null,null,null,0]
[null,null,null,null,null,null,null,null,null,null,null,null,null,null,null,0]
[null,null,null,null,null,null,null,null,null,null,null,null,null,null,null,0]
[null,null,null,null,null,null,null,null,null,null,null,null,null,null,null,0]
[null,null,null,null,null,null,null,null,null,null,null,null,null,null,null,0]
[null,null,null,null,null,null,null,null,null,null,null,null,null,null,null,0]
[null,null,null,null,null,null,null,null,null,null,null,null,null,null,null,0]
[null,null,null,null,null,null,null,null,null,null,null,null,null,null,null,0]
[null,null,null,null,null,null,null,null,null,null,null,null,null,null,null,0]
[null,null,null,null,null,null,null,null,null,null,null,null,null,null,null,0]
[null,null,null,null,null,null,null,null,null,null,null,null,null,null,null,0]
[null,null,null,null,null,null,null,null,null,null,null,null,null,null,null,0]
[null,null,null,null,null,null,null,null,null,null,null,null,null,null,null,0]
[null,null,null,null,null,null,null,null,null,null,null,null,null,null,null,0]
[null,null,null,null,null,null,null,null,null,null,null,null,null,null,null,0]
[null,null,null,null,null,null,null,null,null,null,null,null,null,null,null,0]
[null,null,null,null,null,null,null,null,null,null,null,null,null,null,null,0]
[null,null,null,null,null,null,null,null,null,null,null,null,null,null,null,0]
[null,null,null,null,null,null,null,null,null,null,null,null,null,null,null,0]
[null,null,null,null,null,null,null,null,null,null,null,null,null,null,null,0]
[null,null,null,null,null,null,null,null,null,null,null,null,null,null,null,0]
[null,null,null,null,null,null,null,null,null,null,null,null,null,null,null,0]
[null,null,null,null,null,null,null,null,null,null,null,null,null,null,null,0]
[null,null,null,null,null,null,null,null,null,null,null,null,null,null,null,0]
[null,null,null,null,null,null,null,null,null,null,null,null,null,null,null,0]
[null,null,null,null,null,null,null,null,null,null,null,null,null,null,null,0]
[null,null,null,null,null,null,null,null,null,null,null,null,null,null,null,0]
[null,null,null,null,null,null,null,null,null,null,null,null,null,null,null,0]
[null,null,null,null,null,null,null,null,null,null,null,null,null,null,null,0]
[null,null,null,null,null,null,null,null,null,null,null,null,null,null,null,0]
[null,null,null,null,null,null,null,null,null,null,null,null,null,null,null,0]
[null,null,null,null,null,null,null,null,null,null,null,null,null,null,null,0]
[null,null,null,null,null,null,null,null,null,null,null,null,null,null,null,0]
[null,null,null,null,null,null,null,null,null,null,null,null,null,null,null,0]
[null,null,null,null,null,null,null,null,null,null,null,null,null,null,null,0]
[null,null,null,null,null,null,null,null,null,null,null,null,null,null,null,0]
[null,null,null,null,null,null,null,null,null,null,null,null,null,null,null,0]
[null,null,null,null,null,null,null,null,null,null,null,null,null,null,null,{"$f":"IFERROR(IF(G329=$V$3,$W$3,IF(G329=$V$4,$W$4,IF(G329=$V$5,$W$5,IF(G329=$V$6,$W$6,IF(G329=$V$7,$W$7,\"\"))))),0)","v":0}]
[null,null,null,null,null,null,null,null,null,null,null,null,null,null,null,0]
[null,null,null,null,null,null,null,null,null,null,null,null,null,null,null,0]
[null,null,null,null,null,null,null,null,null,null,null,null,null,null,null,0]
[null,null,null,null,null,null,null,null,null,null,null,null,null,null,null,0]
[null,null,null,null,null,null,null,null,null,null,null,null,null,null,null,0]
[null,null,null,null,null,null,null,null,null,null,null,null,null,null,null,0]
[null,null,null,null,null,null,null,null,null,null,null,null,null,null,null,0]
[null,null,null,null,null,null,null,null,null,null,null,null,null,null,null,0]
[null,null,null,null,null,null,null,null,null,null,null,null,null,null,null,0]
[null,null,null,null,null,null,null,null,null,null,null,null,null,null,null,0]
[null,null,null,null,null,null,null,null,null,null,null,null,null,null,null,0]
[null,null,null,null,null,null,null,null,null,null,null,null,null,null,null,0]
[null,null,null,null,null,null,null,null,null,null,null,null,null,null,null,0]
[null,null,null,null,null,null,null,null,null,null,null,null,null,null,null,0]
[null,null,null,null,null,null,null,null,null,null,null,null,null,null,null,0]
[null,null,null,null,null,null,null,null,null,null,null,null,null,null,null,0]
[null,null,null,null,null,null,null,null,null,null,null,null,null,null,null,0]
[null,null,null,null,null,null,null,null,null,null,null,null,null,null,null,0]
[null,null,null,null,null,null,null,null,null,null,null,null,null,null,null,0]
[null,null,null,null,null,null,null,null,null,null,null,null,null,null,null,0]
[null,null,null,null,null,null,null,null,null,null,null,null,null,null,null,0]
[null,null,null,null,null,null,null,null,null,null,null,null,null,null,null,0]
[null,null,null,null,null,null,null,null,null,null,null,null,null,null,null,0]
[null,null,null,null,null,null,null,null,null,null,null,null,null,null,null,0]
[null,null,null,null,null,null,null,null,null,null,null,null,null,null,null,0]
[null,null,null,null,null,null,null,null,null,null,null,null,null,null,null,0]
[null,null,null,null,null,null,null,null,null,null,null,null,null,null,null,0]
[null,null,null,null,null,null,null,null,null,null,null,null,null,null,null,0]
[null,null,null,null,null,null,null,null,null,null,null,null,null,null,null,0]
[null,null,null,null,null,null,null,null,null,null,null,null,null,null,null,0]
[null,null,null,null,null,null,null,null,null,null,null,null,null,null,null,0]
[null,null,null,null,null,null,null,null,null,null,null,null,null,null,null,0]
[null,null,null,null,null,null,null,null,null,null,null,null,null,null,null,0]
[null,null,null,null,null,null,null,null,null,null,null,null,null,null,null,0]
[null,null,null,null,null,null,null,null,null,null,null,null,null,null,null,0]
[null,null,null,null,null,null,null,null,null,null,null,null,null,null,null,0]
[null,null,null,null,null,null,null,null,null,null,null,null,null,null,null,0]
[null,null,null,null,null,null,null,null,null,null,null,null,null,null,null,0]
[null,null,null,null,null,null,null,null,null,null,null,null,null,null,null,0]
[null,null,null,null,null,null,null,null,null,null,null,null,null,null,null,0]
[null,null,null,null,null,null,null,null,null,null,null,null,null,null,null,0]
[null,null,null,null,null,null,null,null,null,null,null,null,null,null,null,0]
[null,null,null,null,null,null,null,null,null,null,null,null,null,null,null,0]
[null,null,null,null,null,null,null,null,null,null,null,null,null,null,null,0]
[null,null,null,null,null,null,null,null,null,null,null,null,null,null,null,0]
[null,null,null,null,null,null,null,null,null,null,null,null,null,null,null,0]
[null,null,null,null,null,null,null,null,null,null,null,null,null,null,null,0]
[null,null,null,null,null,null,null,null,null,null,null,null,null,null,null,0]
[null,null,null,null,null,null,null,null,null,null,null,null,null,null,null,0]
[null,null,null,null,null,null,null,null,null,null,null,null,null,null,null,0]
[null,null,null,null,null,null,null,null,null,null,null,null,null,null,null,0]
[null,null,null,null,null,null,null,null,null,null,null,null,null,null,null,0]
[null,null,null,null,null,null,null,null,null,null,null,null,null,null,null,0]
[null,null,null,null,null,null,null,null,null,null,null,null,null,null,null,0]
[null,null,null,null,null,null,null,null,null,null,null,null,null,null,null,0]
[null,null,null,null,null,null,null,null,null,null,null,null,null,null,null,0]
[null,null,null,null,null,null,null,null,null,null,null,null,null,null,null,0]
[null,null,null,null,null,null,null,null,null,null,null,null,null,null,null,0]
[null,null,null,null,null,null,null,null,null,null,null,null,null,null,null,0]
[null,null,null,null,null,null,null,null,null,null,null,null,null,null,null,0]
[null,null,null,null,null,null,null,null,null,null,null,null,null,null,null,0]
[null,null,null,null,null,null,null,null,null,null,null,null,null,null,null,0]
[null,null,null,null,null,null,null,null,null,null,null,null,null,null,null,0]
[null,null,null,null,null,null,null,null,null,null,null,null,null,null,null,{"$f":"IFERROR(IF(G393=$V$3,$W$3,IF(G393=$V$4,$W$4,IF(G393=$V$5,$W$5,IF(G393=$V$6,$W$6,IF(G393=$V$7,$W$7,\"\"))))),0)","v":0}]
[null,null,null,null,null,null,null,null,null,null,null,null,null,null,null,0]
[null,null,null,null,null,null,null,null,null,null,null,null,null,null,null,0]
[null,null,null,null,null,null,null,null,null,null,null,null,null,null,null,0]
[null,null,null,null,null,null,null,null,null,null,null,null,null,null,null,0]
[null,null,null,null,null,null,null,null,null,null,null,null,null,null,null,0]
[null,null,null,null,null,null,null,null,null,null,null,null,null,null,null,0]
[null,null,null,null,null,null,null,null,null,null,null,null,null,null,null,0]
[null,null,null,null,null,null,null,null,null,null,null,null,null,null,null,0]
[null,null,null,null,null,null,null,null,null,null,null,null,null,null,null,0]
[null,null,null,null,null,null,null,null,null,null,null,null,null,null,null,0]
[null,null,null,null,null,null,null,null,null,null,null,null,null,null,null,0]
[null,null,null,null,null,null,null,null,null,null,null,null,null,null,null,0]
[null,null,null,null,null,null,null,null,null,null,null,null,null,null,null,0]
[null,null,null,null,null,null,null,null,null,null,null,null,null,null,null,0]
[null,null,null,null,null,null,null,null,null,null,null,null,null,null,null,0]
[null,null,null,null,null,null,null,null,null,null,null,null,null,null,null,0]
[null,null,null,null,null,null,null,null,null,null,null,null,null,null,null,0]
[null,null,null,null,null,null,null,null,null,null,null,null,null,null,null,0]
[null,null,null,null,null,null,null,null,null,null,null,null,null,null,null,0]
[null,null,null,null,null,null,null,null,null,null,null,null,null,null,null,0]
[null,null,null,null,null,null,null,null,null,null,null,null,null,null,null,0]
[null,null,null,null,null,null,null,null,null,null,null,null,null,null,null,0]
[null,null,null,null,null,null,null,null,null,null,null,null,null,null,null,0]
[null,null,null,null,null,null,null,null,null,null,null,null,null,null,null,0]
[null,null,null,null,null,null,null,null,null,null,null,null,null,null,null,0]
[null,null,null,null,null,null,null,null,null,null,null,null,null,null,null,0]
[null,null,null,null,null,null,null,null,null,null,null,null,null,null,null,0]
[null,null,null,null,null,null,null,null,null,null,null,null,null,null,null,0]
[null,null,null,null,null,null,null,null,null,null,null,null,null,null,null,0]
[null,null,null,null,null,null,null,null,null,null,null,null,null,null,null,0]
[null,null,null,null,null,null,null,null,null,null,null,null,null,null,null,0]
[null,null,null,null,null,null,null,null,null,null,null,null,null,null,null,0]
[null,null,null,null,null,null,null,null,null,null,null,null,null,null,null,0]
[null,null,null,null,null,null,null,null,null,null,null,null,null,null,null,0]
[null,null,null,null,null,null,null,null,null,null,null,null,null,null,null,0]
[null,null,null,null,null,null,null,null,null,null,null,null,null,null,null,0]
[null,null,null,null,null,null,null,null,null,null,null,null,null,null,null,0]
[null,null,null,null,null,null,null,null,null,null,null,null,null,null,null,0]
[null,null,null,null,null,null,null,null,null,null,null,null,null,null,null,0]
[null,null,null,null,null,null,null,null,null,null,null,null,null,null,null,0]
[null,null,null,null,null,null,null,null,null,null,null,null,null,null,null,0]
[null,null,null,null,null,null,null,null,null,null,null,null,null,null,null,0]
[null,null,null,null,null,null,null,null,null,null,null,null,null,null,null,0]
[null,null,null,null,null,null,null,null,null,null,null,null,null,null,null,0]
[null,null,null,null,null,null,null,null,null,null,null,null,null,null,null,0]
[null,null,null,null,null,null,null,null,null,null,null,null,null,null,null,0]
[null,null,null,null,null,null,null,null,null,null,null,null,null,null,null,0]
[null,null,null,null,null,null,null,null,null,null,null,null,null,null,null,0]
[null,null,null,null,null,null,null,null,null,null,null,null,null,null,null,0]
[null,null,null,null,null,null,null,null,null,null,null,null,null,null,null,0]
[null,null,null,null,null,null,null,null,null,null,null,null,null,null,null,0]
[null,null,null,null,null,null,null,null,null,null,null,null,null,null,null,0]
[null,null,null,null,null,null,null,null,null,null,null,null,null,null,null,0]
[null,null,null,null,null,null,null,null,null,null,null,null,null,null,null,0]
[null,null,null,null,null,null,null,null,null,null,null,null,null,null,null,0]
[null,null,null,null,null,null,null,null,null,null,null,null,null,null,null,0]
[null,null,null,null,null,null,null,null,null,null,null,null,null,null,null,0]
[null,null,null,null,null,null,null,null,null,null,null,null,null,null,null,0]
[null,null,null,null,null,null,null,null,null,null,null,null,null,null,null,0]
[null,null,null,null,null,null,null,null,null,null,null,null,null,null,null,0]
[null,null,null,null,null,null,null,null,null,null,null,null,null,null,null,0]
[null,null,null,null,null,null,null,null,null,null,null,null,null,null,null,0]
[null,null,null,null,null,null,null,null,null,null,null,null,null,null,null,0]
[null,null,null,null,null,null,null,null,null,null,null,null,null,null,null,{"$f":"IFERROR(IF(G457=$V$3,$W$3,IF(G457=$V$4,$W$4,IF(G457=$V$5,$W$5,IF(G457=$V$6,$W$6,IF(G457=$V$7,$W$7,\"\"))))),0)","v":0}]
[null,null,null,null,null,null,null,null,null,null,null,null,null,null,null,0]
[null,null,null,null,null,null,null,null,null,null,null,null,null,null,null,0]
[null,null,null,null,null,null,null,null,null,null,null,null,null,null,null,0]
[null,null,null,null,null,null,null,null,null,null,null,null,null,null,null,0]
[null,null,null,null,null,null,null,null,null,null,null,null,null,null,null,0]
[null,null,null,null,null,null,null,null,null,null,null,null,null,null,null,0]
[null,null,null,null,null,null,null,null,null,null,null,null,null,null,null,0]
[null,null,null,null,null,null,null,null,null,null,null,null,null,null,null,0]
[null,null,null,null,null,null,null,null,null,null,null,null,null,null,null,0]
[null,null,null,null,null,null,null,null,null,null,null,null,null,null,null,0]
[null,null,null,null,null,null,null,null,null,null,null,null,null,null,null,0]
[null,null,null,null,null,null,null,null,null,null,null,null,null,null,null,0]
[null,null,null,null,null,null,null,null,null,null,null,null,null,null,null,0]
[null,null,null,null,null,null,null,null,null,null,null,null,null,null,null,0]
[null,null,null,null,null,null,null,null,null,null,null,null,null,null,null,0]
[null,null,null,null,null,null,null,null,null,null,null,null,null,null,null,0]
[null,null,null,null,null,null,null,null,null,null,null,null,null,null,null,0]
[null,null,null,null,null,null,null,null,null,null,null,null,null,null,null,0]
[null,null,null,null,null,null,null,null,null,null,null,null,null,null,null,0]
[null,null,null,null,null,null,null,null,null,null,null,null,null,null,null,0]
[null,null,null,null,null,null,null,null,null,null,null,null,null,null,null,0]
[null,null,null,null,null,null,null,null,null,null,null,null,null,null,null,0]
[null,null,null,null,null,null,null,null,null,null,null,null,null,null,null,0]
[null,null,null,null,null,null,null,null,null,null,null,null,null,null,null,0]
[null,null,null,null,null,null,null,null,null,null,null,null,null,null,null,0]
[null,null,null,null,null,null,null,null,null,null,null,null,null,null,null,0]
[null,null,null,null,null,null,null,null,null,null,null,null,null,null,null,0]
[null,null,null,null,null,null,null,null,null,null,null,null,null,null,null,0]
[null,null,null,null,null,null,null,null,null,null,null,null,null,null,null,0]
[null,null,null,null,null,null,null,null,null,null,null,null,null,null,null,0]
[null,null,null,null,null,null,null,null,null,null,null,null,null,null,null,0]
[null,null,null,null,null,null,null,null,null,null,null,null,null,null,null,0]
[null,null,null,null,null,null,null,null,null,null,null,null,null,null,null,0]
[null,null,null,null,null,null,null,null,null,null,null,null,null,null,null,0]
[null,null,null,null,null,null,null,null,null,null,null,null,null,null,null,0]
[null,null,null,null,null,null,null,null,null,null,null,null,null,null,null,0]
[null,null,null,null,null,null,null,null,null,null,null,null,null,null,null,0]
[null,null,null,null,null,null,null,null,null,null,null,null,null,null,null,0]
[null,null,null,null,null,null,null,null,null,null,null,null,null,null,null,0]
[null,null,null,null,null,null,null,null,null,null,null,null,null,null,null,0]
[null,null,null,null,null,null,null,null,null,null,null,null,null,null,null,0]
[null,null,null,null,null,null,null,null,null,null,null,null,null,null,null,0]
[null,null,null,null,null,null,null,null,null,null,null,null,null,null,null,0]
[null,null,null,null,null,null,null,null,null,null,null,null,null,null,null,0]
[null,null,null,null,null,null,null,null,null,null,null,null,null,null,null,0]
[null,null,null,null,null,null,null,null,null,null,null,null,null,null,null,0]
[null,null,null,null,null,null,null,null,null,null,null,null,null,null,null,0]
[null,null,null,null,null,null,null,null,null,null,null,null,null,null,null,0]
[null,null,null,null,null,null,null,null,null,null,null,null,null,null,null,0]
[null,null,null,null,null,null,null,null,null,null,null,null,null,null,null,0]
[null,null,null,null,null,null,null,null,null,null,null,null,null,null,null,0]
[null,null,null,null,null,null,null,null,null,null,null,null,null,null,null,0]
[null,null,null,null,null,null,null,null,null,null,null,null,null,null,null,0]
[null,null,null,null,null,null,null,null,null,null,null,null,null,null,null,0]
[null,null,null,null,null,null,null,null,null,null,null,null,null,null,null,0]
[null,null,null,null,null,null,null,null,null,null,null,null,null,null,null,0]
[null,null,null,null,null,null,null,null,null,null,null,null,null,null,null,0]
[null,null,null,null,null,null,null,null,null,null,null,null,null,null,null,0]
[null,null,null,null,null,null,null,null,null,null,null,null,null,null,null,0]
[null,null,null,null,null,null,null,null,null,null,null,null,null,null,null,0]
[null,null,null,null,null,null,null,null,null,null,null,null,null,null,null,0]
[null,null,null,null,null,null,null,null,null,null,null,null,null,null,null,0]
[null,null,null,null,null,null,null,null,null,null,null,null,null,null,null,0]
[null,null,null,null,null,null,null,null,null,null,null,null,null,null,null,{"$f":"IFERROR(IF(G521=$V$3,$W$3,IF(G521=$V$4,$W$4,IF(G521=$V$5,$W$5,IF(G521=$V$6,$W$6,IF(G521=$V$7,$W$7,\"\"))))),0)","v":0}]
[null,null,null,null,null,null,null,null,null,null,null,null,null,null,null,0]
[null,null,null,null,null,null,null,null,null,null,null,null,null,null,null,0]
[null,null,null,null,null,null,null,null,null,null,null,null,null,null,null,0]
[null,null,null,null,null,null,null,null,null,null,null,null,null,null,null,0]
[null,null,null,null,null,null,null,null,null,null,null,null,null,null,null,0]
[null,null,null,null,null,null,null,null,null,null,null,null,null,null,null,0]
[null,null,null,null,null,null,null,null,null,null,null,null,null,null,null,0]
[null,null,null,null,null,null,null,null,null,null,null,null,null,null,null,0]
[null,null,null,null,null,null,null,null,null,null,null,null,null,null,null,0]
[null,null,null,null,null,null,null,null,null,null,null,null,null,null,null,0]
[null,null,null,null,null,null,null,null,null,null,null,null,null,null,null,0]
[null,null,null,null,null,null,null,null,null,null,null,null,null,null,null,0]
[null,null,null,null,null,null,null,null,null,null,null,null,null,null,null,0]
[null,null,null,null,null,null,null,null,null,null,null,null,null,null,null,0]
[null,null,null,null,null,null,null,null,null,null,null,null,null,null,null,0]
[null,null,null,null,null,null,null,null,null,null,null,null,null,null,null,0]
[null,null,null,null,null,null,null,null,null,null,null,null,null,null,null,0]
[null,null,null,null,null,null,null,null,null,null,null,null,null,null,null,0]
[null,null,null,null,null,null,null,null,null,null,null,null,null,null,null,0]
[null,null,null,null,null,null,null,null,null,null,null,null,null,null,null,0]
[null,null,null,null,null,null,null,null,null,null,null,null,null,null,null,0]
[null,null,null,null,null,null,null,null,null,null,null,null,null,null,null,0]
[null,null,null,null,null,null,null,null,null,null,null,null,null,null,null,0]
[null,null,null,null,null,null,null,null,null,null,null,null,null,null,null,0]
[null,null,null,null,null,null,null,null,null,null,null,null,null,null,null,0]
[null,null,null,null,null,null,null,null,null,null,null,null,null,null,null,0]
[null,null,null,null,null,null,null,null,null,null,null,null,null,null,null,0]
[null,null,null,null,null,null,null,null,null,null,null,null,null,null,null,0]
[null,null,null,null,null,null,null,null,null,null,null,null,null,null,null,0]
[null,null,null,null,null,null,null,null,null,null,null,null,null,null,null,0]
[null,null,null,null,null,null,null,null,null,null,null,null,null,null,null,0]
[null,null,null,null,null,null,null,null,null,null,null,null,null,null,null,0]
[null,null,null,null,null,null,null,null,null,null,null,null,null,null,null,0]
[null,null,null,null,null,null,null,null,null,null,null,null,null,null,null,0]
[null,null,null,null,null,null,null,null,null,null,null,null,null,null,null,0]
[null,null,null,null,null,null,null,null,null,null,null,null,null,null,null,0]
[null,null,null,null,null,null,null,null,null,null,null,null,null,null,null,0]
[null,null,null,null,null,null,null,null,null,null,null,null,null,null,null,0]
[null,null,null,null,null,null,null,null,null,null,null,null,null,null,null,0]
[null,null,null,null,null,null,null,null,null,null,null,null,null,null,null,0]
[null,null,null,null,null,null,null,null,null,null,null,null,null,null,null,0]
[null,null,null,null,null,null,null,null,null,null,null,null,null,null,null,0]
[null,null,null,null,null,null,null,null,null,null,null,null,null,null,null,0]
[null,null,null,null,null,null,null,null,null,null,null,null,null,null,null,0]
[null,null,null,null,null,null,null,null,null,null,null,null,null,null,null,0]
[null,null,null,null,null,null,null,null,null,null,null,null,null,null,null,0]
[null,null,null,null,null,null,null,null,null,null,null,null,null,null,null,0]
[null,null,null,null,null,null,null,null,null,null,null,null,null,null,null,0]
[null,null,null,null,null,null,null,null,null,null,null,null,null,null,null,0]
[null,null,null,null,null,null,null,null,null,null,null,null,null,null,null,0]
[null,null,null,null,null,null,null,null,null,null,null,null,null,null,null,0]
[null,null,null,null,null,null,null,null,null,null,null,null,null,null,null,0]
[null,null,null,null,null,null,null,null,null,null,null,null,null,null,null,0]
[null,null,null,null,null,null,null,null,null,null,null,null,null,null,null,0]
[null,null,null,null,null,null,null,null,null,null,null,null,null,null,null,0]
[null,null,null,null,null,null,null,null,null,null,null,null,null,null,null,0]
[null,null,null,null,null,null,null,null,null,null,null,null,null,null,null,0]
[null,null,null,null,null,null,null,null,null,null,null,null,null,null,null,0]
[null,null,null,null,null,null,null,null,null,null,null,null,null,null,null,0]
[null,null,null,null,null,null,null,null,null,null,null,null,null,null,null,0]
[null,null,null,null,null,null,null,null,null,null,null,null,null,null,null,0]
[null,null,null,null,null,null,null,null,null,null,null,null,null,null,null,0]
[null,null,null,null,null,null,null,null,null,null,null,null,null,null,null,0]
[null,null,null,null,null,null,null,null,null,null,null,null,null,null,null,{"$f":"IFERROR(IF(G585=$V$3,$W$3,IF(G585=$V$4,$W$4,IF(G585=$V$5,$W$5,IF(G585=$V$6,$W$6,IF(G585=$V$7,$W$7,\"\"))))),0)","v":0}]
[null,null,null,null,null,null,null,null,null,null,null,null,null,null,null,0]
[null,null,null,null,null,null,null,null,null,null,null,null,null,null,null,0]
[null,null,null,null,null,null,null,null,null,null,null,null,null,null,null,0]
[null,null,null,null,null,null,null,null,null,null,null,null,null,null,null,0]
[null,null,null,null,null,null,null,null,null,null,null,null,null,null,null,0]
[null,null,null,null,null,null,null,null,null,null,null,null,null,null,null,0]
[null,null,null,null,null,null,null,null,null,null,null,null,null,null,null,0]
[null,null,null,null,null,null,null,null,null,null,null,null,null,null,null,0]
[null,null,null,null,null,null,null,null,null,null,null,null,null,null,null,0]
[null,null,null,null,null,null,null,null,null,null,null,null,null,null,null,0]
[null,null,null,null,null,null,null,null,null,null,null,null,null,null,null,0]
[null,null,null,null,null,null,null,null,null,null,null,null,null,null,null,0]
[null,null,null,null,null,null,null,null,null,null,null,null,null,null,null,0]
[null,null,null,null,null,null,null,null,null,null,null,null,null,null,null,0]
[null,null,null,null,null,null,null,null,null,null,null,null,null,null,null,0]
[null,null,null,null,null,null,null,null,null,null,null,null,null,null,null,0]
[null,null,null,null,null,null,null,null,null,null,null,null,null,null,null,0]
[null,null,null,null,null,null,null,null,null,null,null,null,null,null,null,0]
[null,null,null,null,null,null,null,null,null,null,null,null,null,null,null,0]
[null,null,null,null,null,null,null,null,null,null,null,null,null,null,null,0]
[null,null,null,null,null,null,null,null,null,null,null,null,null,null,null,0]
[null,null,null,null,null,null,null,null,null,null,null,null,null,null,null,0]
[null,null,null,null,null,null,null,null,null,null,null,null,null,null,null,0]
[null,null,null,null,null,null,null,null,null,null,null,null,null,null,null,0]
[null,null,null,null,null,null,null,null,null,null,null,null,null,null,null,0]
[null,null,null,null,null,null,null,null,null,null,null,null,null,null,null,0]
[null,null,null,null,null,null,null,null,null,null,null,null,null,null,null,0]
[null,null,null,null,null,null,null,null,null,null,null,null,null,null,null,0]
[null,null,null,null,null,null,null,null,null,null,null,null,null,null,null,0]
[null,null,null,null,null,null,null,null,null,null,null,null,null,null,null,0]
[null,null,null,null,null,null,null,null,null,null,null,null,null,null,null,0]
[null,null,null,null,null,null,null,null,null,null,null,null,null,null,null,0]
[null,null,null,null,null,null,null,null,null,null,null,null,null,null,null,0]
[null,null,null,null,null,null,null,null,null,null,null,null,null,null,null,0]
[null,null,null,null,null,null,null,null,null,null,null,null,null,null,null,0]
[null,null,null,null,null,null,null,null,null,null,null,null,null,null,null,0]
[null,null,null,null,null,null,null,null,null,null,null,null,null,null,null,0]
[null,null,null,null,null,null,null,null,null,null,null,null,null,null,null,0]
[null,null,null,null,null,null,null,null,null,null,null,null,null,null,null,0]
[null,null,null,null,null,null,null,null,null,null,null,null,null,null,null,0]
[null,null,null,null,null,null,null,null,null,null,null,null,null,null,null,0]
[null,null,null,null,null,null,null,null,null,null,null,null,null,null,null,0]
[null,null,null,null,null,null,null,null,null,null,null,null,null,null,null,0]
[null,null,null,null,null,null,null,null,null,null,null,null,null,null,null,0]
[null,null,null,null,null,null,null,null,null,null,null,null,null,null,null,0]
[null,null,null,null,null,null,null,null,null,null,null,null,null,null,null,0]
[null,null,null,null,null,null,null,null,null,null,null,null,null,null,null,0]
[null,null,null,null,null,null,null,null,null,null,null,null,null,null,null,0]
[null,null,null,null,null,null,null,null,null,null,null,null,null,null,null,0]
[null,null,null,null,null,null,null,null,null,null,null,null,null,null,null,0]
[null,null,null,null,null,null,null,null,null,null,null,null,null,null,null,0]
[null,null,null,null,null,null,null,null,null,null,null,null,null,null,null,0]
[null,null,null,null,null,null,null,null,null,null,null,null,null,null,null,0]
[null,null,null,null,null,null,null,null,null,null,null,null,null,null,null,0]
[null,null,null,null,null,null,null,null,null,null,null,null,null,null,null,0]
[null,null,null,null,null,null,null,null,null,null,null,null,null,null,null,0]
[null,null,null,null,null,null,null,null,null,null,null,null,null,null,null,0]
[null,null,null,null,null,null,null,null,null,null,null,null,null,null,null,0]
[null,null,null,null,null,null,null,null,null,null,null,null,null,null,null,0]
[null,null,null,null,null,null,null,null,null,null,null,null,null,null,null,0]
[null,null,null,null,null,null,null,null,null,null,null,null,null,null,null,0]
[null,null,null,null,null,null,null,null,null,null,null,null,null,null,null,0]
[null,null,null,null,null,null,null,null,null,null,null,null,null,null,null,0]
[null,null,null,null,null,null,null,null,null,null,null,null,null,null,null,{"$f":"IFERROR(IF(G649=$V$3,$W$3,IF(G649=$V$4,$W$4,IF(G649=$V$5,$W$5,IF(G649=$V$6,$W$6,IF(G649=$V$7,$W$7,\"\"))))),0)","v":0}]
[null,null,null,null,null,null,null,null,null,null,null,null,null,null,null,0]
[null,null,null,null,null,null,null,null,null,null,null,null,null,null,null,0]
[null,null,null,null,null,null,null,null,null,null,null,null,null,null,null,0]
[null,null,null,null,null,null,null,null,null,null,null,null,null,null,null,0]
[null,null,null,null,null,null,null,null,null,null,null,null,null,null,null,0]
[null,null,null,null,null,null,null,null,null,null,null,null,null,null,null,0]
[null,null,null,null,null,null,null,null,null,null,null,null,null,null,null,0]
[null,null,null,null,null,null,null,null,null,null,null,null,null,null,null,0]
[null,null,null,null,null,null,null,null,null,null,null,null,null,null,null,0]
[null,null,null,null,null,null,null,null,null,null,null,null,null,null,null,0]
[null,null,null,null,null,null,null,null,null,null,null,null,null,null,null,0]
[null,null,null,null,null,null,null,null,null,null,null,null,null,null,null,0]
[null,null,null,null,null,null,null,null,null,null,null,null,null,null,null,0]
[null,null,null,null,null,null,null,null,null,null,null,null,null,null,null,0]
[null,null,null,null,null,null,null,null,null,null,null,null,null,null,null,0]
[null,null,null,null,null,null,null,null,null,null,null,null,null,null,null,0]
[null,null,null,null,null,null,null,null,null,null,null,null,null,null,null,0]
[null,null,null,null,null,null,null,null,null,null,null,null,null,null,null,0]
[null,null,null,null,null,null,null,null,null,null,null,null,null,null,null,0]
[null,null,null,null,null,null,null,null,null,null,null,null,null,null,null,0]
[null,null,null,null,null,null,null,null,null,null,null,null,null,null,null,0]
[null,null,null,null,null,null,null,null,null,null,null,null,null,null,null,0]
[null,null,null,null,null,null,null,null,null,null,null,null,null,null,null,0]
[null,null,null,null,null,null,null,null,null,null,null,null,null,null,null,0]
[null,null,null,null,null,null,null,null,null,null,null,null,null,null,null,0]
[null,null,null,null,null,null,null,null,null,null,null,null,null,null,null,0]
[null,null,null,null,null,null,null,null,null,null,null,null,null,null,null,0]
[null,null,null,null,null,null,null,null,null,null,null,null,null,null,null,0]
[null,null,null,null,null,null,null,null,null,null,null,null,null,null,null,0]
[null,null,null,null,null,null,null,null,null,null,null,null,null,null,null,0]
[null,null,null,null,null,null,null,null,null,null,null,null,null,null,null,0]
[null,null,null,null,null,null,null,null,null,null,null,null,null,null,null,0]
[null,null,null,null,null,null,null,null,null,null,null,null,null,null,null,0]
[null,null,null,null,null,null,null,null,null,null,null,null,null,null,null,0]
[null,null,null,null,null,null,null,null,null,null,null,null,null,null,null,0]
[null,null,null,null,null,null,null,null,null,null,null,null,null,null,null,0]
[null,null,null,null,null,null,null,null,null,null,null,null,null,null,null,0]
[null,null,null,null,null,null,null,null,null,null,null,null,null,null,null,0]
[null,null,null,null,null,null,null,null,null,null,null,null,null,null,null,0]
[null,null,null,null,null,null,null,null,null,null,null,null,null,null,null,0]
[null,null,null,null,null,null,null,null,null,null,null,null,null,null,null,0]
[null,null,null,null,null,null,null,null,null,null,null,null,null,null,null,0]
[null,null,null,null,null,null,null,null,null,null,null,null,null,null,null,0]
[null,null,null,null,null,null,null,null,null,null,null,null,null,null,null,0]
[null,null,null,null,null,null,null,null,null,null,null,null,null,null,null,0]
[null,null,null,null,null,null,null,null,null,null,null,null,null,null,null,0]
[null,null,null,null,null,null,null,null,null,null,null,null,null,null,null,0]
[null,null,null,null,null,null,null,null,null,null,null,null,null,null,null,0]
[null,null,null,null,null,null,null,null,null,null,null,null,null,null,null,0]
[null,null,null,null,null,null,null,null,null,null,null,null,null,null,null,0]
[null,null,null,null,null,null,null,null,null,null,null,null,null,null,null,0]
[null,null,null,null,null,null,null,null,null,null,null,null,null,null,null,0]
[null,null,null,null,null,null,null,null,null,null,null,null,null,null,null,0]
[null,null,null,null,null,null,null,null,null,null,null,null,null,null,null,0]
[null,null,null,null,null,null,null,null,null,null,null,null,null,null,null,0]
[null,null,null,null,null,null,null,null,null,null,null,null,null,null,null,0]
[null,null,null,null,null,null,null,null,null,null,null,null,null,null,null,0]
[null,null,null,null,null,null,null,null,null,null,null,null,null,null,null,0]
[null,null,null,null,null,null,null,null,null,null,null,null,null,null,null,0]
[null,null,null,null,null,null,null,null,null,null,null,null,null,null,null,0]
[null,null,null,null,null,null,null,null,null,null,null,null,null,null,null,0]
[null,null,null,null,null,null,null,null,null,null,null,null,null,null,null,0]
[null,null,null,null,null,null,null,null,null,null,null,null,null,null,null,0]
[null,null,null,null,null,null,null,null,null,null,null,null,null,null,null,{"$f":"IFERROR(IF(G713=$V$3,$W$3,IF(G713=$V$4,$W$4,IF(G713=$V$5,$W$5,IF(G713=$V$6,$W$6,IF(G713=$V$7,$W$7,\"\"))))),0)","v":0}]
[null,null,null,null,null,null,null,null,null,null,null,null,null,null,null,0]
[null,null,null,null,null,null,null,null,null,null,null,null,null,null,null,0]
[null,null,null,null,null,null,null,null,null,null,null,null,null,null,null,0]
[null,null,null,null,null,null,null,null,null,null,null,null,null,null,null,0]
[null,null,null,null,null,null,null,null,null,null,null,null,null,null,null,0]
[null,null,null,null,null,null,null,null,null,null,null,null,null,null,null,0]
[null,null,null,null,null,null,null,null,null,null,null,null,null,null,null,0]
[null,null,null,null,null,null,null,null,null,null,null,null,null,null,null,0]
[null,null,null,null,null,null,null,null,null,null,null,null,null,null,null,0]
[null,null,null,null,null,null,null,null,null,null,null,null,null,null,null,0]
[null,null,null,null,null,null,null,null,null,null,null,null,null,null,null,0]
[null,null,null,null,null,null,null,null,null,null,null,null,null,null,null,0]
[null,null,null,null,null,null,null,null,null,null,null,null,null,null,null,0]
[null,null,null,null,null,null,null,null,null,null,null,null,null,null,null,0]
[null,null,null,null,null,null,null,null,null,null,null,null,null,null,null,0]
[null,null,null,null,null,null,null,null,null,null,null,null,null,null,null,0]
[null,null,null,null,null,null,null,null,null,null,null,null,null,null,null,0]
[null,null,null,null,null,null,null,null,null,null,null,null,null,null,null,0]
[null,null,null,null,null,null,null,null,null,null,null,null,null,null,null,0]
[null,null,null,null,null,null,null,null,null,null,null,null,null,null,null,0]
[null,null,null,null,null,null,null,null,null,null,null,null,null,null,null,0]
[null,null,null,null,null,null,null,null,null,null,null,null,null,null,null,0]
[null,null,null,null,null,null,null,null,null,null,null,null,null,null,null,0]
[null,null,null,null,null,null,null,null,null,null,null,null,null,null,null,0]
[null,null,null,null,null,null,null,null,null,null,null,null,null,null,null,0]
[null,null,null,null,null,null,null,null,null,null,null,null,null,null,null,0]
[null,null,null,null,null,null,null,null,null,null,null,null,null,null,null,0]
[null,null,null,null,null,null,null,null,null,null,null,null,null,null,null,0]
[null,null,null,null,null,null,null,null,null,null,null,null,null,null,null,0]
[null,null,null,null,null,null,null,null,null,null,null,null,null,null,null,0]
[null,null,null,null,null,null,null,null,null,null,null,null,null,null,null,0]
[null,null,null,null,null,null,null,null,null,null,null,null,null,null,null,0]
[null,null,null,null,null,null,null,null,null,null,null,null,null,null,null,0]
[null,null,null,null,null,null,null,null,null,null,null,null,null,null,null,0]
[null,null,null,null,null,null,null,null,null,null,null,null,null,null,null,0]
[null,null,null,null,null,null,null,null,null,null,null,null,null,null,null,0]
[null,null,null,null,null,null,null,null,null,null,null,null,null,null,null,0]
[null,null,null,null,null,null,null,null,null,null,null,null,null,null,null,0]
[null,null,null,null,null,null,null,null,null,null,null,null,null,null,null,0]
[null,null,null,null,null,null,null,null,null,null,null,null,null,null,null,0]
[null,null,null,null,null,null,null,null,null,null,null,null,null,null,null,0]
[null,null,null,null,null,null,null,null,null,null,null,null,null,null,null,0]
[null,null,null,null,null,null,null,null,null,null,null,null,null,null,null,0]
[null,null,null,null,null,null,null,null,null,null,null,null,null,null,null,0]
[null,null,null,null,null,null,null,null,null,null,null,null,null,null,null,0]
[null,null,null,null,null,null,null,null,null,null,null,null,null,null,null,0]
[null,null,null,null,null,null,null,null,null,null,null,null,null,null,null,0]
[null,null,null,null,null,null,null,null,null,null,null,null,null,null,null,0]
[null,null,null,null,null,null,null,null,null,null,null,null,null,null,null,0]
[null,null,null,null,null,null,null,null,null,null,null,null,null,null,null,0]
[null,null,null,null,null,null,null,null,null,null,null,null,null,null,null,0]
[null,null,null,null,null,null,null,null,null,null,null,null,null,null,null,0]
[null,null,null,null,null,null,null,null,null,null,null,null,null,null,null,0]
[null,null,null,null,null,null,null,null,null,null,null,null,null,null,null,0]
[null,null,null,null,null,null,null,null,null,null,null,null,null,null,null,0]
[null,null,null,null,null,null,null,null,null,null,null,null,null,null,null,0]
[null,null,null,null,null,null,null,null,null,null,null,null,null,null,null,0]
[null,null,null,null,null,null,null,null,null,null,null,null,null,null,null,0]
[null,null,null,null,null,null,null,null,null,null,null,null,null,null,null,0]
[null,null,null,null,null,null,null,null,null,null,null,null,null,null,null,0]
[null,null,null,null,null,null,null,null,null,null,null,null,null,null,null,0]
[null,null,null,null,null,null,null,null,null,null,null,null,null,null,null,0]
[null,null,null,null,null,null,null,null,null,null,null,null,null,null,null,0]
[null,null,null,null,null,null,null,null,null,null,null,null,null,null,null,{"$f":"IFERROR(IF(G777=$V$3,$W$3,IF(G777=$V$4,$W$4,IF(G777=$V$5,$W$5,IF(G777=$V$6,$W$6,IF(G777=$V$7,$W$7,\"\"))))),0)","v":0}]
[null,null,null,null,null,null,null,null,null,null,null,null,null,null,null,0]
[null,null,null,null,null,null,null,null,null,null,null,null,null,null,null,0]
[null,null,null,null,null,null,null,null,null,null,null,null,null,null,null,0]
[null,null,null,null,null,null,null,null,null,null,null,null,null,null,null,0]
[null,null,null,null,null,null,null,null,null,null,null,null,null,null,null,0]
[null,null,null,null,null,null,null,null,null,null,null,null,null,null,null,0]
[null,null,null,null,null,null,null,null,null,null,null,null,null,null,null,0]
[null,null,null,null,null,null,null,null,null,null,null,null,null,null,null,0]
[null,null,null,null,null,null,null,null,null,null,null,null,null,null,null,0]
[null,null,null,null,null,null,null,null,null,null,null,null,null,null,null,0]
[null,null,null,null,null,null,null,null,null,null,null,null,null,null,null,0]
[null,null,null,null,null,null,null,null,null,null,null,null,null,null,null,0]
[null,null,null,null,null,null,null,null,null,null,null,null,null,null,null,0]
[null,null,null,null,null,null,null,null,null,null,null,null,null,null,null,0]
[null,null,null,null,null,null,null,null,null,null,null,null,null,null,null,0]
[null,null,null,null,null,null,null,null,null,null,null,null,null,null,null,0]
[null,null,null,null,null,null,null,null,null,null,null,null,null,null,null,0]
[null,null,null,null,null,null,null,null,null,null,null,null,null,null,null,0]
[null,null,null,null,null,null,null,null,null,null,null,null,null,null,null,0]
[null,null,null,null,null,null,null,null,null,null,null,null,null,null,null,0]
[null,null,null,null,null,null,null,null,null,null,null,null,null,null,null,0]
[null,null,null,null,null,null,null,null,null,null,null,null,null,null,null,0]
[null,null,null,null,null,null,null,null,null,null,null,null,null,null,null,0]
[null,null,null,null,null,null,null,null,null,null,null,null,null,null,null,0]
[null,null,null,null,null,null,null,null,null,null,null,null,null,null,null,0]
[null,null,null,null,null,null,null,null,null,null,null,null,null,null,null,0]
[null,null,null,null,null,null,null,null,null,null,null,null,null,null,null,0]
[null,null,null,null,null,null,null,null,null,null,null,null,null,null,null,0]
[null,null,null,null,null,null,null,null,null,null,null,null,null,null,null,0]
[null,null,null,null,null,null,null,null,null,null,null,null,null,null,null,0]
[null,null,null,null,null,null,null,null,null,null,null,null,null,null,null,0]
[null,null,null,null,null,null,null,null,null,null,null,null,null,null,null,0]
[null,null,null,null,null,null,null,null,null,null,null,null,null,null,null,0]
[null,null,null,null,null,null,null,null,null,null,null,null,null,null,null,0]
[null,null,null,null,null,null,null,null,null,null,null,null,null,null,null,0]
[null,null,null,null,null,null,null,null,null,null,null,null,null,null,null,0]
[null,null,null,null,null,null,null,null,null,null,null,null,null,null,null,0]
[null,null,null,null,null,null,null,null,null,null,null,null,null,null,null,0]
[null,null,null,null,null,null,null,null,null,null,null,null,null,null,null,0]
[null,null,null,null,null,null,null,null,null,null,null,null,null,null,null,0]
[null,null,null,null,null,null,null,null,null,null,null,null,null,null,null,0]
[null,null,null,null,null,null,null,null,null,null,null,null,null,null,null,0]
[null,null,null,null,null,null,null,null,null,null,null,null,null,null,null,0]
[null,null,null,null,null,null,null,null,null,null,null,null,null,null,null,0]
[null,null,null,null,null,null,null,null,null,null,null,null,null,null,null,0]
[null,null,null,null,null,null,null,null,null,null,null,null,null,null,null,0]
[null,null,null,null,null,null,null,null,null,null,null,null,null,null,null,0]
[null,null,null,null,null,null,null,null,null,null,null,null,null,null,null,0]
[null,null,null,null,null,null,null,null,null,null,null,null,null,null,null,0]
[null,null,null,null,null,null,null,null,null,null,null,null,null,null,null,0]
[null,null,null,null,null,null,null,null,null,null,null,null,null,null,null,0]
[null,null,null,null,null,null,null,null,null,null,null,null,null,null,null,0]
[null,null,null,null,null,null,null,null,null,null,null,null,null,null,null,0]
[null,null,null,null,null,null,null,null,null,null,null,null,null,null,null,0]
[null,null,null,null,null,null,null,null,null,null,null,null,null,null,null,0]
[null,null,null,null,null,null,null,null,null,null,null,null,null,null,null,0]
[null,null,null,null,null,null,null,null,null,null,null,null,null,null,null,0]
[null,null,null,null,null,null,null,null,null,null,null,null,null,null,null,0]
[null,null,null,null,null,null,null,null,null,null,null,null,null,null,null,0]
[null,null,null,null,null,null,null,null,null,null,null,null,null,null,null,0]
[null,null,null,null,null,null,null,null,null,null,null,null,null,null,null,0]
[null,null,null,null,null,null,null,null,null,null,null,null,null,null,null,0]
[null,null,null,null,null,null,null,null,null,null,null,null,null,null,null,0]
[null,null,null,null,null,null,null,null,null,null,null,null,null,null,null,{"$f":"IFERROR(IF(G841=$V$3,$W$3,IF(G841=$V$4,$W$4,IF(G841=$V$5,$W$5,IF(G841=$V$6,$W$6,IF(G841=$V$7,$W$7,\"\"))))),0)","v":0}]
[null,null,null,null,null,null,null,null,null,null,null,null,null,null,null,0]
[null,null,null,null,null,null,null,null,null,null,null,null,null,null,null,0]
[null,null,null,null,null,null,null,null,null,null,null,null,null,null,null,0]
[null,null,null,null,null,null,null,null,null,null,null,null,null,null,null,0]
[null,null,null,null,null,null,null,null,null,null,null,null,null,null,null,0]
[null,null,null,null,null,null,null,null,null,null,null,null,null,null,null,0]
[null,null,null,null,null,null,null,null,null,null,null,null,null,null,null,0]
[null,null,null,null,null,null,null,null,null,null,null,null,null,null,null,0]
[null,null,null,null,null,null,null,null,null,null,null,null,null,null,null,0]
[null,null,null,null,null,null,null,null,null,null,null,null,null,null,null,0]
[null,null,null,null,null,null,null,null,null,null,null,null,null,null,null,0]
[null,null,null,null,null,null,null,null,null,null,null,null,null,null,null,0]
[null,null,null,null,null,null,null,null,null,null,null,null,null,null,null,0]
[null,null,null,null,null,null,null,null,null,null,null,null,null,null,null,0]
[null,null,null,null,null,null,null,null,null,null,null,null,null,null,null,0]
[null,null,null,null,null,null,null,null,null,null,null,null,null,null,null,0]
[null,null,null,null,null,null,null,null,null,null,null,null,null,null,null,0]
[null,null,null,null,null,null,null,null,null,null,null,null,null,null,null,0]
[null,null,null,null,null,null,null,null,null,null,null,null,null,null,null,0]
[null,null,null,null,null,null,null,null,null,null,null,null,null,null,null,0]
[null,null,null,null,null,null,null,null,null,null,null,null,null,null,null,0]
[null,null,null,null,null,null,null,null,null,null,null,null,null,null,null,0]
[null,null,null,null,null,null,null,null,null,null,null,null,null,null,null,0]
[null,null,null,null,null,null,null,null,null,null,null,null,null,null,null,0]
[null,null,null,null,null,null,null,null,null,null,null,null,null,null,null,0]
[null,null,null,null,null,null,null,null,null,null,null,null,null,null,null,0]
[null,null,null,null,null,null,null,null,null,null,null,null,null,null,null,0]
[null,null,null,null,null,null,null,null,null,null,null,null,null,null,null,0]
[null,null,null,null,null,null,null,null,null,null,null,null,null,null,null,0]
[null,null,null,null,null,null,null,null,null,null,null,null,null,null,null,0]
[null,null,null,null,null,null,null,null,null,null,null,null,null,null,null,0]
[null,null,null,null,null,null,null,null,null,null,null,null,null,null,null,0]
[null,null,null,null,null,null,null,null,null,null,null,null,null,null,null,0]
[null,null,null,null,null,null,null,null,null,null,null,null,null,null,null,0]
[null,null,null,null,null,null,null,null,null,null,null,null,null,null,null,0]
[null,null,null,null,null,null,null,null,null,null,null,null,null,null,null,0]
[null,null,null,null,null,null,null,null,null,null,null,null,null,null,null,0]
[null,null,null,null,null,null,null,null,null,null,null,null,null,null,null,0]
[null,null,null,null,null,null,null,null,null,null,null,null,null,null,null,0]
[null,null,null,null,null,null,null,null,null,null,null,null,null,null,null,0]
[null,null,null,null,null,null,null,null,null,null,null,null,null,null,null,0]
[null,null,null,null,null,null,null,null,null,null,null,null,null,null,null,0]
[null,null,null,null,null,null,null,null,null,null,null,null,null,null,null,0]
[null,null,null,null,null,null,null,null,null,null,null,null,null,null,null,0]
[null,null,null,null,null,null,null,null,null,null,null,null,null,null,null,0]
[null,null,null,null,null,null,null,null,null,null,null,null,null,null,null,0]
[null,null,null,null,null,null,null,null,null,null,null,null,null,null,null,0]
[null,null,null,null,null,null,null,null,null,null,null,null,null,null,null,0]
[null,null,null,null,null,null,null,null,null,null,null,null,null,null,null,0]
[null,null,null,null,null,null,null,null,null,null,null,null,null,null,null,0]
[null,null,null,null,null,null,null,null,null,null,null,null,null,null,null,0]
[null,null,null,null,null,null,null,null,null,null,null,null,null,null,null,0]
[null,null,null,null,null,null,null,null,null,null,null,null,null,null,null,0]
[null,null,null,null,null,null,null,null,null,null,null,null,null,null,null,0]
[null,null,null,null,null,null,null,null,null,null,null,null,null,null,null,0]
[null,null,null,null,null,null,null,null,null,null,null,null,null,null,null,0]
[null,null,null,null,null,null,null,null,null,null,null,null,null,null,null,0]
[null,null,null,null,null,null,null,null,null,null,null,null,null,null,null,0]
[null,null,null,null,null,null,null,null,null,null,null,null,null,null,null,0]
[null,null,null,null,null,null,null,null,null,null,null,null,null,null,null,0]
[null,null,null,null,null,null,null,null,null,null,null,null,null,null,null,0]
[null,null,null,null,null,null,null,null,null,null,null,null,null,null,null,0]
[null,null,null,null,null,null,null,null,null,null,null,null,null,null,null,0]
[null,null,null,null,null,null,null,null,null,null,null,null,null,null,null,{"$f":"IFERROR(IF(G905=$V$3,$W$3,IF(G905=$V$4,$W$4,IF(G905=$V$5,$W$5,IF(G905=$V$6,$W$6,IF(G905=$V$7,$W$7,\"\"))))),0)","v":0}]
[null,null,null,null,null,null,null,null,null,null,null,null,null,null,null,0]
[null,null,null,null,null,null,null,null,null,null,null,null,null,null,null,0]
[null,null,null,null,null,null,null,null,null,null,null,null,null,null,null,0]
[null,null,null,null,null,null,null,null,null,null,null,null,null,null,null,0]
[null,null,null,null,null,null,null,null,null,null,null,null,null,null,null,0]
[null,null,null,null,null,null,null,null,null,null,null,null,null,null,null,0]
[null,null,null,null,null,null,null,null,null,null,null,null,null,null,null,0]
[null,null,null,null,null,null,null,null,null,null,null,null,null,null,null,0]
[null,null,null,null,null,null,null,null,null,null,null,null,null,null,null,0]
[null,null,null,null,null,null,null,null,null,null,null,null,null,null,null,0]
[null,null,null,null,null,null,null,null,null,null,null,null,null,null,null,0]
[null,null,null,null,null,null,null,null,null,null,null,null,null,null,null,0]
[null,null,null,null,null,null,null,null,null,null,null,null,null,null,null,0]
[null,null,null,null,null,null,null,null,null,null,null,null,null,null,null,0]
[null,null,null,null,null,null,null,null,null,null,null,null,null,null,null,0]
[null,null,null,null,null,null,null,null,null,null,null,null,null,null,null,0]
[null,null,null,null,null,null,null,null,null,null,null,null,null,null,null,0]
[null,null,null,null,null,null,null,null,null,null,null,null,null,null,null,0]
[null,null,null,null,null,null,null,null,null,null,null,null,null,null,null,0]
[null,null,null,null,null,null,null,null,null,null,null,null,null,null,null,0]
[null,null,null,null,null,null,null,null,null,null,null,null,null,null,null,0]
[null,null,null,null,null,null,null,null,null,null,null,null,null,null,null,0]
[null,null,null,null,null,null,null,null,null,null,null,null,null,null,null,0]
[null,null,null,null,null,null,null,null,null,null,null,null,null,null,null,0]
[null,null,null,null,null,null,null,null,null,null,null,null,null,null,null,0]
[null,null,null,null,null,null,null,null,null,null,null,null,null,null,null,0]
[null,null,null,null,null,null,null,null,null,null,null,null,null,null,null,0]
[null,null,null,null,null,null,null,null,null,null,null,null,null,null,null,0]
[null,null,null,null,null,null,null,null,null,null,null,null,null,null,null,0]
[null,null,null,null,null,null,null,null,null,null,null,null,null,null,null,0]
[null,null,null,null,null,null,null,null,null,null,null,null,null,null,null,0]
[null,null,null,null,null,null,null,null,null,null,null,null,null,null,null,0]
[null,null,null,null,null,null,null,null,null,null,null,null,null,null,null,0]
[null,null,null,null,null,null,null,null,null,null,null,null,null,null,null,0]
[null,null,null,null,null,null,null,null,null,null,null,null,null,null,null,0]
[null,null,null,null,null,null,null,null,null,null,null,null,null,null,null,0]
[null,null,null,null,null,null,null,null,null,null,null,null,null,null,null,0]
[null,null,null,null,null,null,null,null,null,null,null,null,null,null,null,0]
[null,null,null,null,null,null,null,null,null,null,null,null,null,null,null,0]
[null,null,null,null,null,null,null,null,null,null,null,null,null,null,null,0]
[null,null,null,null,null,null,null,null,null,null,null,null,null,null,null,0]
[null,null,null,null,null,null,null,null,null,null,null,null,null,null,null,0]
[null,null,null,null,null,null,null,null,null,null,null,null,null,null,null,0]
[null,null,null,null,null,null,null,null,null,null,null,null,null,null,null,0]
[null,null,null,null,null,null,null,null,null,null,null,null,null,null,null,0]
[null,null,null,null,null,null,null,null,null,null,null,null,null,null,null,0]
[null,null,null,null,null,null,null,null,null,null,null,null,null,null,null,0]
[null,null,null,null,null,null,null,null,null,null,null,null,null,null,null,0]
[null,null,null,null,null,null,null,null,null,null,null,null,null,null,null,0]
[null,null,null,null,null,null,null,null,null,null,null,null,null,null,null,0]
[null,null,null,null,null,null,null,null,null,null,null,null,null,null,null,0]
[null,null,null,null,null,null,null,null,null,null,null,null,null,null,null,0]
[null,null,null,null,null,null,null,null,null,null,null,null,null,null,null,0]
[null,null,null,null,null,null,null,null,null,null,null,null,null,null,null,0]
[null,null,null,null,null,null,null,null,null,null,null,null,null,null,null,0]
[null,null,null,null,null,null,null,null,null,null,null,null,null,null,null,0]
[null,null,null,null,null,null,null,null,null,null,null,null,null,null,null,0]
[null,null,null,null,null,null,null,null,null,null,null,null,null,null,null,0]
[null,null,null,null,null,null,null,null,null,null,null,null,null,null,null,0]
[null,null,null,null,null,null,null,null,null,null,null,null,null,null,null,0]
[null,null,null,null,null,null,null,null,null,null,null,null,null,null,null,0]
[null,null,null,null,null,null,null,null,null,null,null,null,null,null,null,0]
[null,null,null,null,null,null,null,null,null,null,null,null,null,null,null,0]
[null,null,null,null,null,null,null,null,null,null,null,null,null,null,null,{"$f":"IFERROR(IF(G969=$V$3,$W$3,IF(G969=$V$4,$W$4,IF(G969=$V$5,$W$5,IF(G969=$V$6,$W$6,IF(G969=$V$7,$W$7,\"\"))))),0)","v":0}]
[null,null,null,null,null,null,null,null,null,null,null,null,null,null,null,0]
[null,null,null,null,null,null,null,null,null,null,null,null,null,null,null,0]
[null,null,null,null,null,null,null,null,null,null,null,null,null,null,null,0]
[null,null,null,null,null,null,null,null,null,null,null,null,null,null,null,0]
[null,null,null,null,null,null,null,null,null,null,null,null,null,null,null,0]
[null,null,null,null,null,null,null,null,null,null,null,null,null,null,null,0]
[null,null,null,null,null,null,null,null,null,null,null,null,null,null,null,0]
[null,null,null,null,null,null,null,null,null,null,null,null,null,null,null,0]
[null,null,null,null,null,null,null,null,null,null,null,null,null,null,null,0]
[null,null,null,null,null,null,null,null,null,null,null,null,null,null,null,0]
[null,null,null,null,null,null,null,null,null,null,null,null,null,null,null,0]
[null,null,null,null,null,null,null,null,null,null,null,null,null,null,null,0]
[null,null,null,null,null,null,null,null,null,null,null,null,null,null,null,0]
[null,null,null,null,null,null,null,null,null,null,null,null,null,null,null,0]
[null,null,null,null,null,null,null,null,null,null,null,null,null,null,null,0]
[null,null,null,null,null,null,null,null,null,null,null,null,null,null,null,0]
[null,null,null,null,null,null,null,null,null,null,null,null,null,null,null,0]
[null,null,null,null,null,null,null,null,null,null,null,null,null,null,null,0]
[null,null,null,null,null,null,null,null,null,null,null,null,null,null,null,0]
[null,null,null,null,null,null,null,null,null,null,null,null,null,null,null,0]
[null,null,null,null,null,null,null,null,null,null,null,null,null,null,null,0]
[null,null,null,null,null,null,null,null,null,null,null,null,null,null,null,0]
[null,null,null,null,null,null,null,null,null,null,null,null,null,null,null,0]
[null,null,null,null,null,null,null,null,null,null,null,null,null,null,null,0]
[null,null,null,null,null,null,null,null,null,null,null,null,null,null,null,0]
[null,null,null,null,null,null,null,null,null,null,null,null,null,null,null,0]
[null,null,null,null,null,null,null,null,null,null,null,null,null,null,null,0]
[null,null,null,null,null,null,null,null,null,null,null,null,null,null,null,0]
[null,null,null,null,null,null,null,null,null,null,null,null,null,null,null,0]
[null,null,null,null,null,null,null,null,null,null,null,null,null,null,null,0]
[null,null,null,null,null,null,null,null,null,null,null,null,null,null,null,0]
[null,null,null,null,null,null,null,null,null,null,null,null,null,null,null,0]
[null,null,null,null,null,null,null,null,null,null,null,null,null,null,null,0]
[null,null,null,null,null,null,null,null,null,null,null,null,null,null,null,0]
[null,null,null,null,null,null,null,null,null,null,null,null,null,null,null,0]
[null,null,null,null,null,null,null,null,null,null,null,null,null,null,null,0]
[null,null,null,null,null,null,null,null,null,null,null,null,null,null,null,0]
[null,null,null,null,null,null,null,null,null,null,null,null,null,null,null,0]
[null,null,null,null,null,null,null,null,null,null,null,null,null,null,null,0]
[null,null,null,null,null,null,null,null,null,null,null,null,null,null,null,0]
[null,null,null,null,null,null,null,null,null,null,null,null,null,null,null,0]
[null,null,null,null,null,null,null,null,null,null,null,null,null,null,null,0]
[null,null,null,null,null,null,null,null,null,null,null,null,null,null,null,0]
[null,null,null,null,null,null,null,null,null,null,null,null,null,null,null,0]
[null,null,null,null,null,null,null,null,null,null,null,null,null,null,null,0]
[null,null,null,null,null,null,null,null,null,null,null,null,null,null,null,0]
[null,null,null,null,null,null,null,null,null,null,null,null,null,null,null,0]
[null,null,null,null,null,null,null,null,null,null,null,null,null,null,null,0]
[null,null,null,null,null,null,null,null,null,null,null,null,null,null,null,0]
[null,null,null,null,null,null,null,null,null,null,null,null,null,null,null,0]
[null,null,null,null,null,null,null,null,null,null,null,null,null,null,null,0]
[null,null,null,null,null,null,null,null,null,null,null,null,null,null,null,0]
[null,null,null,null,null,null,null,null,null,null,null,null,null,null,null,0]
[null,null,null,null,null,null,null,null,null,null,null,null,null,null,null,0]
[null,null,null,null,null,null,null,null,null,null,null,null,null,null,null,0]
[null,null,null,null,null,null,null,null,null,null,null,null,null,null,null,0]
[null,null,null,null,null,null,null,null,null,null,null,null,null,null,null,0]
[null,null,null,null,null,null,null,null,null,null,null,null,null,null,null,0]
[null,null,null,null,null,null,null,null,null,null,null,null,null,null,null,0]
[null,null,null,null,null,null,null,null,null,null,null,null,null,null,null,0]
[null,null,null,null,null,null,null,null,null,null,null,null,null,null,null,0]
[null,null,null,null,null,null,null,null,null,null,null,null,null,null,null,0]
[null,null,null,null,null,null,null,null,null,null,null,null,null,null,null,0]
[null,null,null,null,null,null,null,null,null,null,null,null,null,null,null,{"$f":"IFERROR(IF(G1033=$V$3,$W$3,IF(G1033=$V$4,$W$4,IF(G1033=$V$5,$W$5,IF(G1033=$V$6,$W$6,IF(G1033=$V$7,$W$7,\"\"))))),0)","v":0}]
[null,null,null,null,null,null,null,null,null,null,null,null,null,null,null,0]
[null,null,null,null,null,null,null,null,null,null,null,null,null,null,null,0]
[null,null,null,null,null,null,null,null,null,null,null,null,null,null,null,0]
[null,null,null,null,null,null,null,null,null,null,null,null,null,null,null,0]
[null,null,null,null,null,null,null,null,null,null,null,null,null,null,null,0]
[null,null,null,null,null,null,null,null,null,null,null,null,null,null,null,0]
[null,null,null,null,null,null,null,null,null,null,null,null,null,null,null,0]
[null,null,null,null,null,null,null,null,null,null,null,null,null,null,null,0]
[null,null,null,null,null,null,null,null,null,null,null,null,null,null,null,0]
[null,null,null,null,null,null,null,null,null,null,null,null,null,null,null,0]
[null,null,null,null,null,null,null,null,null,null,null,null,null,null,null,0]
[null,null,null,null,null,null,null,null,null,null,null,null,null,null,null,0]
[null,null,null,null,null,null,null,null,null,null,null,null,null,null,null,0]
[null,null,null,null,null,null,null,null,null,null,null,null,null,null,null,0]
[null,null,null,null,null,null,null,null,null,null,null,null,null,null,null,0]
[null,null,null,null,null,null,null,null,null,null,null,null,null,null,null,0]
[null,null,null,null,null,null,null,null,null,null,null,null,null,null,null,0]
[null,null,null,null,null,null,null,null,null,null,null,null,null,null,null,0]
[null,null,null,null,null,null,null,null,null,null,null,null,null,null,null,0]
[null,null,null,null,null,null,null,null,null,null,null,null,null,null,null,0]
[null,null,null,null,null,null,null,null,null,null,null,null,null,null,null,0]
[null,null,null,null,null,null,null,null,null,null,null,null,null,null,null,0]
[null,null,null,null,null,null,null,null,null,null,null,null,null,null,null,0]
[null,null,null,null,null,null,null,null,null,null,null,null,null,null,null,0]
[null,null,null,null,null,null,null,null,null,null,null,null,null,null,null,0]
[null,null,null,null,null,null,null,null,null,null,null,null,null,null,null,0]
[null,null,null,null,null,null,null,null,null,null,null,null,null,null,null,0]
[null,null,null,null,null,null,null,null,null,null,null,null,null,null,null,0]
[null,null,null,null,null,null,null,null,null,null,null,null,null,null,null,0]
[null,null,null,null,null,null,null,null,null,null,null,null,null,null,null,0]
[null,null,null,null,null,null,null,null,null,null,null,null,null,null,null,0]
[null,null,null,null,null,null,null,null,null,null,null,null,null,null,null,0]
[null,null,null,null,null,null,null,null,null,null,null,null,null,null,null,0]
[null,null,null,null,null,null,null,null,null,null,null,null,null,null,null,0]
[null,null,null,null,null,null,null,null,null,null,null,null,null,null,null,0]
[null,null,null,null,null,null,null,null,null,null,null,null,null,null,null,0]
[null,null,null,null,null,null,null,null,null,null,null,null,null,null,null,0]
[null,null,null,null,null,null,null,null,null,null,null,null,null,null,null,0]
[null,null,null,null,null,null,null,null,null,null,null,null,null,null,null,0]
[null,null,null,null,null,null,null,null,null,null,null,null,null,null,null,0]
[null,null,null,null,null,null,null,null,null,null,null,null,null,null,null,0]
[null,null,null,null,null,null,null,null,null,null,null,null,null,null,null,0]
[null,null,null,null,null,null,null,null,null,null,null,null,null,null,null,0]
[null,null,null,null,null,null,null,null,null,null,null,null,null,null,null,0]
[null,null,null,null,null,null,null,null,null,null,null,null,null,null,null,0]
[null,null,null,null,null,null,null,null,null,null,null,null,null,null,null,0]
[null,null,null,null,null,null,null,null,null,null,null,null,null,null,null,0]
[null,null,null,null,null,null,null,null,null,null,null,null,null,null,null,0]
[null,null,null,null,null,null,null,null,null,null,null,null,null,null,null,0]
[null,null,null,null,null,null,null,null,null,null,null,null,null,null,null,0]
[null,null,null,null,null,null,null,null,null,null,null,null,null,null,null,0]
[null,null,null,null,null,null,null,null,null,null,null,null,null,null,null,0]
[null,null,null,null,null,null,null,null,null,null,null,null,null,null,null,0]
[null,null,null,null,null,null,null,null,null,null,null,null,null,null,null,0]
[null,null,null,null,null,null,null,null,null,null,null,null,null,null,null,0]
[null,null,null,null,null,null,null,null,null,null,null,null,null,null,null,0]
[null,null,null,null,null,null,null,null,null,null,null,null,null,null,null,0]
[null,null,null,null,null,null,null,null,null,null,null,null,null,null,null,0]
[null,null,null,null,null,null,null,null,null,null,null,null,null,null,null,0]
[null,null,null,null,null,null,null,null,null,null,null,null,null,null,null,0]
[null,null,null,null,null,null,null,null,null,null,null,null,null,null,null,0]
[null,null,null,null,null,null,null,null,null,null,null,null,null,null,null,0]
[null,null,null,null,null,null,null,null,null,null,null,null,null,null,null,0]
[null,null,null,null,null,null,null,null,null,null,null,null,null,null,null,{"$f":"IFERROR(IF(G1097=$V$3,$W$3,IF(G1097=$V$4,$W$4,IF(G1097=$V$5,$W$5,IF(G1097=$V$6,$W$6,IF(G1097=$V$7,$W$7,\"\"))))),0)","v":0}]
[null,null,null,null,null,null,null,null,null,null,null,null,null,null,null,0]
[null,null,null,null,null,null,null,null,null,null,null,null,null,null,null,0]
[null,null,null,null,null,null,null,null,null,null,null,null,null,null,null,0]
[null,null,null,null,null,null,null,null,null,null,null,null,null,null,null,0]
[null,null,null,null,null,null,null,null,null,null,null,null,null,null,null,0]
[null,null,null,null,null,null,null,null,null,null,null,null,null,null,null,0]
[null,null,null,null,null,null,null,null,null,null,null,null,null,null,null,0]
[null,null,null,null,null,null,null,null,null,null,null,null,null,null,null,0]
[null,null,null,null,null,null,null,null,null,null,null,null,null,null,null,0]
[null,null,null,null,null,null,null,null,null,null,null,null,null,null,null,0]
[null,null,null,null,null,null,null,null,null,null,null,null,null,null,null,0]
[null,null,null,null,null,null,null,null,null,null,null,null,null,null,null,0]
[null,null,null,null,null,null,null,null,null,null,null,null,null,null,null,0]
[null,null,null,null,null,null,null,null,null,null,null,null,null,null,null,0]
[null,null,null,null,null,null,null,null,null,null,null,null,null,null,null,0]
[null,null,null,null,null,null,null,null,null,null,null,null,null,null,null,0]
[null,null,null,null,null,null,null,null,null,null,null,null,null,null,null,0]
[null,null,null,null,null,null,null,null,null,null,null,null,null,null,null,0]
[null,null,null,null,null,null,null,null,null,null,null,null,null,null,null,0]
[null,null,null,null,null,null,null,null,null,null,null,null,null,null,null,0]
[null,null,null,null,null,null,null,null,null,null,null,null,null,null,null,0]
[null,null,null,null,null,null,null,null,null,null,null,null,null,null,null,0]
[null,null,null,null,null,null,null,null,null,null,null,null,null,null,null,0]
[null,null,null,null,null,null,null,null,null,null,null,null,null,null,null,0]
[null,null,null,null,null,null,null,null,null,null,null,null,null,null,null,0]
[null,null,null,null,null,null,null,null,null,null,null,null,null,null,null,0]
[null,null,null,null,null,null,null,null,null,null,null,null,null,null,null,0]
[null,null,null,null,null,null,null,null,null,null,null,null,null,null,null,0]
[null,null,null,null,null,null,null,null,null,null,null,null,null,null,null,0]
[null,null,null,null,null,null,null,null,null,null,null,null,null,null,null,0]
[null,null,null,null,null,null,null,null,null,null,null,null,null,null,null,0]
[null,null,null,null,null,null,null,null,null,null,null,null,null,null,null,0]
[null,null,null,null,null,null,null,null,null,null,null,null,null,null,null,0]
[null,null,null,null,null,null,null,null,null,null,null,null,null,null,null,0]
[null,null,null,null,null,null,null,null,null,null,null,null,null,null,null,0]
[null,null,null,null,null,null,null,null,null,null,null,null,null,null,null,0]
[null,null,null,null,null,null,null,null,null,null,null,null,null,null,null,0]
[null,null,null,null,null,null,null,null,null,null,null,null,null,null,null,0]
[null,null,null,null,null,null,null,null,null,null,null,null,null,null,null,0]
[null,null,null,null,null,null,null,null,null,null,null,null,null,null,null,0]
[null,null,null,null,null,null,null,null,null,null,null,null,null,null,null,0]
[null,null,null,null,null,null,null,null,null,null,null,null,null,null,null,0]
[null,null,null,null,null,null,null,null,null,null,null,null,null,null,null,0]
[null,null,null,null,null,null,null,null,null,null,null,null,null,null,null,0]
[null,null,null,null,null,null,null,null,null,null,null,null,null,null,null,0]
[null,null,null,null,null,null,null,null,null,null,null,null,null,null,null,0]
[null,null,null,null,null,null,null,null,null,null,null,null,null,null,null,0]
[null,null,null,null,null,null,null,null,null,null,null,null,null,null,null,0]
[null,null,null,null,null,null,null,null,null,null,null,null,null,null,null,0]
[null,null,null,null,null,null,null,null,null,null,null,null,null,null,null,0]
[null,null,null,null,null,null,null,null,null,null,null,null,null,null,null,0]
[null,null,null,null,null,null,null,null,null,null,null,null,null,null,null,0]
[null,null,null,null,null,null,null,null,null,null,null,null,null,null,null,0]
[null,null,null,null,null,null,null,null,null,null,null,null,null,null,null,0]
[null,null,null,null,null,null,null,null,null,null,null,null,null,null,null,0]
[null,null,null,null,null,null,null,null,null,null,null,null,null,null,null,0]
[null,null,null,null,null,null,null,null,null,null,null,null,null,null,null,0]
[null,null,null,null,null,null,null,null,null,null,null,null,null,null,null,0]
[null,null,null,null,null,null,null,null,null,null,null,null,null,null,null,0]
[null,null,null,null,null,null,null,null,null,null,null,null,null,null,null,0]
[null,null,null,null,null,null,null,null,null,null,null,null,null,null,null,0]
[null,null,null,null,null,null,null,null,null,null,null,null,null,null,null,0]
[null,null,null,null,null,null,null,null,null,null,null,null,null,null,null,0]
[null,null,null,null,null,null,null,null,null,null,null,null,null,null,null,{"$f":"IFERROR(IF(G1161=$V$3,$W$3,IF(G1161=$V$4,$W$4,IF(G1161=$V$5,$W$5,IF(G1161=$V$6,$W$6,IF(G1161=$V$7,$W$7,\"\"))))),0)","v":0}]
[null,null,null,null,null,null,null,null,null,null,null,null,null,null,null,0]
[null,null,null,null,null,null,null,null,null,null,null,null,null,null,null,0]
[null,null,null,null,null,null,null,null,null,null,null,null,null,null,null,0]
[null,null,null,null,null,null,null,null,null,null,null,null,null,null,null,0]
[null,null,null,null,null,null,null,null,null,null,null,null,null,null,null,0]
[null,null,null,null,null,null,null,null,null,null,null,null,null,null,null,0]
[null,null,null,null,null,null,null,null,null,null,null,null,null,null,null,0]
[null,null,null,null,null,null,null,null,null,null,null,null,null,null,null,0]
[null,null,null,null,null,null,null,null,null,null,null,null,null,null,null,0]
[null,null,null,null,null,null,null,null,null,null,null,null,null,null,null,0]
[null,null,null,null,null,null,null,null,null,null,null,null,null,null,null,0]
[null,null,null,null,null,null,null,null,null,null,null,null,null,null,null,0]
[null,null,null,null,null,null,null,null,null,null,null,null,null,null,null,0]
[null,null,null,null,null,null,null,null,null,null,null,null,null,null,null,0]
[null,null,null,null,null,null,null,null,null,null,null,null,null,null,null,0]
[null,null,null,null,null,null,null,null,null,null,null,null,null,null,null,0]
[null,null,null,null,null,null,null,null,null,null,null,null,null,null,null,0]
[null,null,null,null,null,null,null,null,null,null,null,null,null,null,null,0]
[null,null,null,null,null,null,null,null,null,null,null,null,null,null,null,0]
[null,null,null,null,null,null,null,null,null,null,null,null,null,null,null,0]
[null,null,null,null,null,null,null,null,null,null,null,null,null,null,null,0]
[null,null,null,null,null,null,null,null,null,null,null,null,null,null,null,0]
[null,null,null,null,null,null,null,null,null,null,null,null,null,null,null,0]
[null,null,null,null,null,null,null,null,null,null,null,null,null,null,null,0]
[null,null,null,null,null,null,null,null,null,null,null,null,null,null,null,0]
[null,null,null,null,null,null,null,null,null,null,null,null,null,null,null,0]
[null,null,null,null,null,null,null,null,null,null,null,null,null,null,null,0]
[null,null,null,null,null,null,null,null,null,null,null,null,null,null,null,0]
[null,null,null,null,null,null,null,null,null,null,null,null,null,null,null,0]
[null,null,null,null,null,null,null,null,null,null,null,null,null,null,null,0]
[null,null,null,null,null,null,null,null,null,null,null,null,null,null,null,0]
[null,null,null,null,null,null,null,null,null,null,null,null,null,null,null,0]
[null,null,null,null,null,null,null,null,null,null,null,null,null,null,null,0]
[null,null,null,null,null,null,null,null,null,null,null,null,null,null,null,0]
[null,null,null,null,null,null,null,null,null,null,null,null,null,null,null,0]
[null,null,null,null,null,null,null,null,null,null,null,null,null,null,null,0]
[null,null,null,null,null,null,null,null,null,null,null,null,null,null,null,0]
[null,null,null,null,null,null,null,null,null,null,null,null,null,null,null,0]
[null,null,null,null,null,null,null,null,null,null,null,null,null,null,null,0]
[null,null,null,null,null,null,null,null,null,null,null,null,null,null,null,0]
[null,null,null,null,null,null,null,null,null,null,null,null,null,null,null,0]
[null,null,null,null,null,null,null,null,null,null,null,null,null,null,null,0]
[null,null,null,null,null,null,null,null,null,null,null,null,null,null,null,0]
[null,null,null,null,null,null,null,null,null,null,null,null,null,null,null,0]
[null,null,null,null,null,null,null,null,null,null,null,null,null,null,null,0]
[null,null,null,null,null,null,null,null,null,null,null,null,null,null,null,0]
[null,null,null,null,null,null,null,null,null,null,null,null,null,null,null,0]
[null,null,null,null,null,null,null,null,null,null,null,null,null,null,null,0]
[null,null,null,null,null,null,null,null,null,null,null,null,null,null,null,0]
[null,null,null,null,null,null,null,null,null,null,null,null,null,null,null,0]
[null,null,null,null,null,null,null,null,null,null,null,null,null,null,null,0]
[null,null,null,null,null,null,null,null,null,null,null,null,null,null,null,0]
[null,null,null,null,null,null,null,null,null,null,null,null,null,null,null,0]
[null,null,null,null,null,null,null,null,null,null,null,null,null,null,null,0]
[null,null,null,null,null,null,null,null,null,null,null,null,null,null,null,0]
[null,null,null,null,null,null,null,null,null,null,null,null,null,null,null,0]
[null,null,null,null,null,null,null,null,null,null,null,null,null,null,null,0]
[null,null,null,null,null,null,null,null,null,null,null,null,null,null,null,0]
[null,null,null,null,null,null,null,null,null,null,null,null,null,null,null,0]
[null,null,null,null,null,null,null,null,null,null,null,null,null,null,null,0]
[null,null,null,null,null,null,null,null,null,null,null,null,null,null,null,0]
[null,null,null,null,null,null,null,null,null,null,null,null,null,null,null,0]
[null,null,null,null,null,null,null,null,null,null,null,null,null,null,null,0]
[null,null,null,null,null,null,null,null,null,null,null,null,null,null,null,{"$f":"IFERROR(IF(G1225=$V$3,$W$3,IF(G1225=$V$4,$W$4,IF(G1225=$V$5,$W$5,IF(G1225=$V$6,$W$6,IF(G1225=$V$7,$W$7,\"\"))))),0)","v":0}]
[null,null,null,null,null,null,null,null,null,null,null,null,null,null,null,0]
[null,null,null,null,null,null,null,null,null,null,null,null,null,null,null,0]
[null,null,null,null,null,null,null,null,null,null,null,null,null,null,null,0]
[null,null,null,null,null,null,null,null,null,null,null,null,null,null,null,0]
[null,null,null,null,null,null,null,null,null,null,null,null,null,null,null,0]
[null,null,null,null,null,null,null,null,null,null,null,null,null,null,null,0]
[null,null,null,null,null,null,null,null,null,null,null,null,null,null,null,0]
[null,null,null,null,null,null,null,null,null,null,null,null,null,null,null,0]
[null,null,null,null,null,null,null,null,null,null,null,null,null,null,null,0]
[null,null,null,null,null,null,null,null,null,null,null,null,null,null,null,0]
[null,null,null,null,null,null,null,null,null,null,null,null,null,null,null,0]
[null,null,null,null,null,null,null,null,null,null,null,null,null,null,null,0]
[null,null,null,null,null,null,null,null,null,null,null,null,null,null,null,0]
[null,null,null,null,null,null,null,null,null,null,null,null,null,null,null,0]
[null,null,null,null,null,null,null,null,null,null,null,null,null,null,null,0]
[null,null,null,null,null,null,null,null,null,null,null,null,null,null,null,0]
[null,null,null,null,null,null,null,null,null,null,null,null,null,null,null,0]
[null,null,null,null,null,null,null,null,null,null,null,null,null,null,null,0]
[null,null,null,null,null,null,null,null,null,null,null,null,null,null,null,0]
[null,null,null,null,null,null,null,null,null,null,null,null,null,null,null,0]
[null,null,null,null,null,null,null,null,null,null,null,null,null,null,null,0]
[null,null,null,null,null,null,null,null,null,null,null,null,null,null,null,0]
[null,null,null,null,null,null,null,null,null,null,null,null,null,null,null,0]
[null,null,null,null,null,null,null,null,null,null,null,null,null,null,null,0]
[null,null,null,null,null,null,null,null,null,null,null,null,null,null,null,0]
[null,null,null,null,null,null,null,null,null,null,null,null,null,null,null,0]
[null,null,null,null,null,null,null,null,null,null,null,null,null,null,null,0]
[null,null,null,null,null,null,null,null,null,null,null,null,null,null,null,0]
[null,null,null,null,null,null,null,null,null,null,null,null,null,null,null,0]
[null,null,null,null,null,null,null,null,null,null,null,null,null,null,null,0]
[null,null,null,null,null,null,null,null,null,null,null,null,null,null,null,0]
[null,null,null,null,null,null,null,null,null,null,null,null,null,null,null,0]
[null,null,null,null,null,null,null,null,null,null,null,null,null,null,null,0]
[null,null,null,null,null,null,null,null,null,null,null,null,null,null,null,0]
[null,null,null,null,null,null,null,null,null,null,null,null,null,null,null,0]
[null,null,null,null,null,null,null,null,null,null,null,null,null,null,null,0]
[null,null,null,null,null,null,null,null,null,null,null,null,null,null,null,0]
[null,null,null,null,null,null,null,null,null,null,null,null,null,null,null,0]
[null,null,null,null,null,null,null,null,null,null,null,null,null,null,null,0]
[null,null,null,null,null,null,null,null,null,null,null,null,null,null,null,0]
[null,null,null,null,null,null,null,null,null,null,null,null,null,null,null,0]
[null,null,null,null,null,null,null,null,null,null,null,null,null,null,null,0]
[null,null,null,null,null,null,null,null,null,null,null,null,null,null,null,0]
[null,null,null,null,null,null,null,null,null,null,null,null,null,null,null,0]
[null,null,null,null,null,null,null,null,null,null,null,null,null,null,null,0]
[null,null,null,null,null,null,null,null,null,null,null,null,null,null,null,0]
[null,null,null,null,null,null,null,null,null,null,null,null,null,null,null,0]
[null,null,null,null,null,null,null,null,null,null,null,null,null,null,null,0]
[null,null,null,null,null,null,null,null,null,null,null,null,null,null,null,0]
[null,null,null,null,null,null,null,null,null,null,null,null,null,null,null,0]
[null,null,null,null,null,null,null,null,null,null,null,null,null,null,null,0]
[null,null,null,null,null,null,null,null,null,null,null,null,null,null,null,0]
[null,null,null,null,null,null,null,null,null,null,null,null,null,null,null,0]
[null,null,null,null,null,null,null,null,null,null,null,null,null,null,null,0]
[null,null,null,null,null,null,null,null,null,null,null,null,null,null,null,0]
[null,null,null,null,null,null,null,null,null,null,null,null,null,null,null,0]
[null,null,null,null,null,null,null,null,null,null,null,null,null,null,null,0]
[null,null,null,null,null,null,null,null,null,null,null,null,null,null,null,0]
[null,null,null,null,null,null,null,null,null,null,null,null,null,null,null,0]
[null,null,null,null,null,null,null,null,null,null,null,null,null,null,null,0]
[null,null,null,null,null,null,null,null,null,null,null,null,null,null,null,0]
[null,null,null,null,null,null,null,null,null,null,null,null,null,null,null,0]
[null,null,null,null,null,null,null,null,null,null,null,null,null,null,null,0]
[null,null,null,null,null,null,null,null,null,null,null,null,null,null,null,{"$f":"IFERROR(IF(G1289=$V$3,$W$3,IF(G1289=$V$4,$W$4,IF(G1289=$V$5,$W$5,IF(G1289=$V$6,$W$6,IF(G1289=$V$7,$W$7,\"\"))))),0)","v":0}]
[null,null,null,null,null,null,null,null,null,null,null,null,null,null,null,0]
[null,null,null,null,null,null,null,null,null,null,null,null,null,null,null,0]
[null,null,null,null,null,null,null,null,null,null,null,null,null,null,null,0]
[null,null,null,null,null,null,null,null,null,null,null,null,null,null,null,0]
[null,null,null,null,null,null,null,null,null,null,null,null,null,null,null,0]
[null,null,null,null,null,null,null,null,null,null,null,null,null,null,null,0]
[null,null,null,null,null,null,null,null,null,null,null,null,null,null,null,0]
[null,null,null,null,null,null,null,null,null,null,null,null,null,null,null,0]
[null,null,null,null,null,null,null,null,null,null,null,null,null,null,null,0]
[null,null,null,null,null,null,null,null,null,null,null,null,null,null,null,0]
[null,null,null,null,null,null,null,null,null,null,null,null,null,null,null,0]
[null,null,null,null,null,null,null,null,null,null,null,null,null,null,null,0]
[null,null,null,null,null,null,null,null,null,null,null,null,null,null,null,0]
[null,null,null,null,null,null,null,null,null,null,null,null,null,null,null,0]
[null,null,null,null,null,null,null,null,null,null,null,null,null,null,null,0]
[null,null,null,null,null,null,null,null,null,null,null,null,null,null,null,0]
[null,null,null,null,null,null,null,null,null,null,null,null,null,null,null,0]
[null,null,null,null,null,null,null,null,null,null,null,null,null,null,null,0]
[null,null,null,null,null,null,null,null,null,null,null,null,null,null,null,0]
[null,null,null,null,null,null,null,null,null,null,null,null,null,null,null,0]
[null,null,null,null,null,null,null,null,null,null,null,null,null,null,null,0]
[null,null,null,null,null,null,null,null,null,null,null,null,null,null,null,0]
[null,null,null,null,null,null,null,null,null,null,null,null,null,null,null,0]
[null,null,null,null,null,null,null,null,null,null,null,null,null,null,null,0]
[null,null,null,null,null,null,null,null,null,null,null,null,null,null,null,0]
[null,null,null,null,null,null,null,null,null,null,null,null,null,null,null,0]
[null,null,null,null,null,null,null,null,null,null,null,null,null,null,null,0]
[null,null,null,null,null,null,null,null,null,null,null,null,null,null,null,0]
[null,null,null,null,null,null,null,null,null,null,null,null,null,null,null,0]
[null,null,null,null,null,null,null,null,null,null,null,null,null,null,null,0]
[null,null,null,null,null,null,null,null,null,null,null,null,null,null,null,0]
[null,null,null,null,null,null,null,null,null,null,null,null,null,null,null,0]
[null,null,null,null,null,null,null,null,null,null,null,null,null,null,null,0]
[null,null,null,null,null,null,null,null,null,null,null,null,null,null,null,0]
[null,null,null,null,null,null,null,null,null,null,null,null,null,null,null,0]
[null,null,null,null,null,null,null,null,null,null,null,null,null,null,null,0]
[null,null,null,null,null,null,null,null,null,null,null,null,null,null,null,0]
[null,null,null,null,null,null,null,null,null,null,null,null,null,null,null,0]
[null,null,null,null,null,null,null,null,null,null,null,null,null,null,null,0]
[null,null,null,null,null,null,null,null,null,null,null,null,null,null,null,0]
[null,null,null,null,null,null,null,null,null,null,null,null,null,null,null,0]
[null,null,null,null,null,null,null,null,null,null,null,null,null,null,null,0]
[null,null,null,null,null,null,null,null,null,null,null,null,null,null,null,0]
[null,null,null,null,null,null,null,null,null,null,null,null,null,null,null,0]
[null,null,null,null,null,null,null,null,null,null,null,null,null,null,null,0]
[null,null,null,null,null,null,null,null,null,null,null,null,null,null,null,0]
[null,null,null,null,null,null,null,null,null,null,null,null,null,null,null,0]
[null,null,null,null,null,null,null,null,null,null,null,null,null,null,null,0]
[null,null,null,null,null,null,null,null,null,null,null,null,null,null,null,0]
[null,null,null,null,null,null,null,null,null,null,null,null,null,null,null,0]
[null,null,null,null,null,null,null,null,null,null,null,null,null,null,null,0]
[null,null,null,null,null,null,null,null,null,null,null,null,null,null,null,0]
[null,null,null,null,null,null,null,null,null,null,null,null,null,null,null,0]
[null,null,null,null,null,null,null,null,null,null,null,null,null,null,null,0]
[null,null,null,null,null,null,null,null,null,null,null,null,null,null,null,0]
[null,null,null,null,null,null,null,null,null,null,null,null,null,null,null,0]
[null,null,null,null,null,null,null,null,null,null,null,null,null,null,null,0]
[null,null,null,null,null,null,null,null,null,null,null,null,null,null,null,0]
[null,null,null,null,null,null,null,null,null,null,null,null,null,null,null,0]
[null,null,null,null,null,null,null,null,null,null,null,null,null,null,null,0]
[null,null,null,null,null,null,null,null,null,null,null,null,null,null,null,0]
[null,null,null,null,null,null,null,null,null,null,null,null,null,null,null,0]
[null,null,null,null,null,null,null,null,null,null,null,null,null,null,null,0]
[null,null,null,null,null,null,null,null,null,null,null,null,null,null,null,{"$f":"IFERROR(IF(G1353=$V$3,$W$3,IF(G1353=$V$4,$W$4,IF(G1353=$V$5,$W$5,IF(G1353=$V$6,$W$6,IF(G1353=$V$7,$W$7,\"\"))))),0)","v":0}]
[null,null,null,null,null,null,null,null,null,null,null,null,null,null,null,0]
[null,null,null,null,null,null,null,null,null,null,null,null,null,null,null,0]
[null,null,null,null,null,null,null,null,null,null,null,null,null,null,null,0]
[null,null,null,null,null,null,null,null,null,null,null,null,null,null,null,0]
[null,null,null,null,null,null,null,null,null,null,null,null,null,null,null,0]
[null,null,null,null,null,null,null,null,null,null,null,null,null,null,null,0]
[null,null,null,null,null,null,null,null,null,null,null,null,null,null,null,0]
[null,null,null,null,null,null,null,null,null,null,null,null,null,null,null,0]
[null,null,null,null,null,null,null,null,null,null,null,null,null,null,null,0]
[null,null,null,null,null,null,null,null,null,null,null,null,null,null,null,0]
[null,null,null,null,null,null,null,null,null,null,null,null,null,null,null,0]
[null,null,null,null,null,null,null,null,null,null,null,null,null,null,null,0]
[null,null,null,null,null,null,null,null,null,null,null,null,null,null,null,0]
[null,null,null,null,null,null,null,null,null,null,null,null,null,null,null,0]
[null,null,null,null,null,null,null,null,null,null,null,null,null,null,null,0]
[null,null,null,null,null,null,null,null,null,null,null,null,null,null,null,0]
[null,null,null,null,null,null,null,null,null,null,null,null,null,null,null,0]
[null,null,null,null,null,null,null,null,null,null,null,null,null,null,null,0]
[null,null,null,null,null,null,null,null,null,null,null,null,null,null,null,0]
[null,null,null,null,null,null,null,null,null,null,null,null,null,null,null,0]
[null,null,null,null,null,null,null,null,null,null,null,null,null,null,null,0]
[null,null,null,null,null,null,null,null,null,null,null,null,null,null,null,0]
[null,null,null,null,null,null,null,null,null,null,null,null,null,null,null,0]
[null,null,null,null,null,null,null,null,null,null,null,null,null,null,null,0]
[null,null,null,null,null,null,null,null,null,null,null,null,null,null,null,0]
[null,null,null,null,null,null,null,null,null,null,null,null,null,null,null,0]
[null,null,null,null,null,null,null,null,null,null,null,null,null,null,null,0]
[null,null,null,null,null,null,null,null,null,null,null,null,null,null,null,0]
[null,null,null,null,null,null,null,null,null,null,null,null,null,null,null,0]
[null,null,null,null,null,null,null,null,null,null,null,null,null,null,null,0]
[null,null,null,null,null,null,null,null,null,null,null,null,null,null,null,0]
[null,null,null,null,null,null,null,null,null,null,null,null,null,null,null,0]
[null,null,null,null,null,null,null,null,null,null,null,null,null,null,null,0]
[null,null,null,null,null,null,null,null,null,null,null,null,null,null,null,0]
[null,null,null,null,null,null,null,null,null,null,null,null,null,null,null,0]
[null,null,null,null,null,null,null,null,null,null,null,null,null,null,null,0]
[null,null,null,null,null,null,null,null,null,null,null,null,null,null,null,0]
[null,null,null,null,null,null,null,null,null,null,null,null,null,null,null,0]
[null,null,null,null,null,null,null,null,null,null,null,null,null,null,null,0]

{"sheet":"الهديب","index":1,"n_rows":17,"n_cols":15,"rows_kept":17,"cut":false,"hidden":false,"merged":[[0,1,0,2],[1,1,1,2],[2,1,2,2],[3,1,3,2]]}
[null,"اسم الشركة",null,null,"تاريخ الكشف: ",{"$f":"TODAY()","v":"2018-03-04"}]
[null,"عنوان الشركة",null,null,"تاريخ الاستحقاق: ",{"$f":"TODAY()+30","v":"2018-04-03"}]
[null,"المدينة والرمز البريدي للشارع"]
[null,"الهاتف"]
[null,"كشف الحساب"]
[null,"اسم العميل"]
[null,"العنوان"]
[]
["الرقم","التاريخ","رقم السند","المستأجر","رقم الجوال","رقم الشقه","البنايه","الفترة من","الفترة الي","المبلغ","التأمين","اتعاب المكتب","مصاريف اداريه","صيانه","مبلغ الضريبة"]
[null,"2018-02-28",1,"وائل الهديب",535266463,103,"الجوهرة","2018-07-09","2019-01-09",11000,0,0,1000,0,0]
[null,"2018-02-28",7,"ناصر الخالدي",538616819,2,"الجوهرة","2018-05-16","Salim",22000,0,0,0,500,0]
[null,"2018-02-28",7,"ناصر الخالدي",538616819,2,"الجوهرة","2018-05-16","Salim",22000,0,0,0,500,0]
[null,"2018-02-28",1,"وائل الهديب",535266463,103,"الجوهرة","2018-07-09","2019-01-09",11000,0,0,1000,0,0]
[null,"2018-02-28",7,"ناصر الخالدي",538616819,2,"الجوهرة","2018-05-16","Salim",22000,0,0,0,500,0]
[null,"2018-02-28",7,"ناصر الخالدي",538616819,2,"الجوهرة","2018-05-16","Salim",22000,0,0,0,500,0]
[null,"2018-02-28",1,"وائل الهديب",535266463,103,"الجوهرة","2018-07-09","2019-01-09",11000,0,0,1500,0,0]
[null,"2018-02-28",1,"وائل الهديب",535266463,103,"الجوهرة","2018-07-09","2019-01-09",11000,0,0,1700,0,0]

{"sheet":"الهاشمي","index":2,"n_rows":13,"n_cols":15,"rows_kept":13,"cut":false,"hidden":false,"merged":[[0,1,0,2],[1,1,1,2],[2,1,2,2],[3,1,3,2]]}
[null,"اسم الشركة",null,null,"تاريخ الكشف: ",{"$f":"TODAY()","v":"2018-03-04"}]
[null,"عنوان الشركة",null,null,"تاريخ الاستحقاق: ",{"$f":"TODAY()+30","v":"2018-04-03"}]
[null,"المدينة والرمز البريدي للشارع"]
[null,"الهاتف"]
[null,"كشف الحساب"]
[null,"اسم العميل"]
[null,"العنوان"]
[]
["الرقم","التاريخ","رقم السند","المستأجر","رقم الجوال","رقم الشقه","البنايه","الفترة من","الفترة الي","المبلغ","التأمين","اتعاب المكتب","مصاريف اداريه","صيانه","مبلغ الضريبة"]
[null,"2018-02-28",2,"سيد الهاشمي",502233784,2,"البايونيه","2018-10-19","2020-04-19",15000,0,450,0,0,0]
[null,"2018-02-28",3,"محمد الهاشمي",509859849,2,"الراكه","2018-05-24","2019-02-24",16000,500,0,0,0,0]
[null,"2018-02-28",3,"محمد الهاشمي",509859849,2,"الراكه","2018-05-24","2019-02-24",16000,500,0,0,0,0]
[null,"2018-02-28",3,"محمد الهاشمي",509859849,2,"الراكه","2018-05-24","2019-02-24",16000,500,"off",0,0,0]

{"sheet":"محمد الخالدي","index":3,"n_rows":14,"n_cols":15,"rows_kept":14,"cut":false,"hidden":false,"merged":[[0,1,0,2],[1,1,1,2],[2,1,2,2],[3,1,3,2]]}
[null,"اسم الشركة",null,null,"تاريخ الكشف: ",{"$f":"TODAY()","v":"2018-03-04"}]
[null,"عنوان الشركة",null,null,"تاريخ الاستحقاق: ",{"$f":"TODAY()+30","v":"2018-04-03"}]
[null,"المدينة والرمز البريدي للشارع"]
[null,"الهاتف"]
[null,"كشف الحساب"]
[null,"اسم العميل"]
[null,"العنوان"]
[null,"المدينة والرمز البريدي للمنطقة"]
["الرقم","التاريخ","رقم السند","المستأجر","رقم الجوال","رقم الشقه","البنايه","الفترة من","الفترة الي","المبلغ","التأمين","اتعاب المكتب","مصاريف اداريه","صيانه","مبلغ الضريبة"]
[null,"2018-02-28",5,"مبارك الخالدي",538616819,2,"الخالدي","2018-05-16","2019-10-16",12500,0,500,0,0,0]
[null,"2018-02-28",7,"ناصر الخالدي",538616819,2,"الخالدي","2018-05-16","2019-10-16",22000,0,0,0,500,0]
[null,"2018-02-28",5,"مبارك الخالدي",538616819,2,"الخالدي","2018-05-16","2019-10-16",12500,0,"off",0,0,0]
[null,"2018-02-28",7,"ناصر الخالدي",538616819,2,"الخالدي","2018-05-16","2019-10-16",22000,0,0,0,500,0]
[null,"2018-02-28",7,"ناصر الخالدي",538616819,2,"الخالدي","2018-05-16","2019-10-16",22000,"salim",0,0,500,0]

{"sheet":"ابو سعود","index":4,"n_rows":14,"n_cols":15,"rows_kept":14,"cut":false,"hidden":false,"merged":[[0,1,0,2],[1,1,1,2],[2,1,2,2],[3,1,3,2]]}
[null,"اسم الشركة",null,null,"تاريخ الكشف: ",{"$f":"TODAY()","v":"2018-03-04"}]
[null,"عنوان الشركة",null,null,"تاريخ الاستحقاق: ",{"$f":"TODAY()+30","v":"2018-04-03"}]
[null,"المدينة والرمز البريدي للشارع"]
[null,"الهاتف"]
[null,"كشف الحساب"]
[null,"اسم العميل"]
[null,"العنوان"]
[]
["الرقم","التاريخ","رقم السند","المستأجر","رقم الجوال","رقم الشقه","البنايه","الفترة من","الفترة الي","المبلغ","التأمين","اتعاب المكتب","مصاريف اداريه","صيانه","مبلغ الضريبة"]
[null,"2018-02-28",6,"حمدي سعود",538616819,2,"ناصر","2018-05-16","2019-10-16",1250,0,0,500,0,0]
[null,"2018-02-28",7,"ناصر سعود",538616819,2,"ناصر","2018-05-16","2019-10-16",22000,0,0,0,500,0]
[null,"2018-02-28",6,"حمدي سعود",538616819,2,"ناصر","2018-05-16","2019-10-16",1250,0,"off",500,0,0]
[null,"2018-02-28",7,"ناصر سعود",538616819,2,"ناصر","2018-05-16","2019-10-16",22000,0,"off",0,500,0]
[null,"2018-02-28",6,"حمدي سعود",538616819,2,"ناصر","2018-05-16","2019-10-16",1250,0,0,800,0,0]